Department family,Entity,Date,Expense type,Expense area,Supplier,Transaction number,Amount
Department of Health,Leicestershire Partnership NHS Trust,01/03/23,External Consultancy Fees,Facilities Team,BLOOM PROC SERV LTD,SIN040806,0.00
Department of Health,Leicestershire Partnership NHS Trust,01/03/23,NURSE - BAND 2 - AGENCY,Beechwood Ward,HCL NURSING,HNSI0001270,11023.38
Department of Health,Leicestershire Partnership NHS Trust,01/03/23,NURSE - BAND 5 - AGENCY,Beechwood Ward,HCL NURSING,HNSI0001270,2539.11
Department of Health,Leicestershire Partnership NHS Trust,01/03/23,NURSE - BAND 2 - AGENCY,CHS Surge Ward,HCL NURSING,HNSI0001270,8133.59
Department of Health,Leicestershire Partnership NHS Trust,01/03/23,NURSE - BAND 5 - AGENCY,CHS Surge Ward,HCL NURSING,HNSI0001270,7677.35
Department of Health,Leicestershire Partnership NHS Trust,01/03/23,NURSE - BAND 5 - AGENCY,City Planned Care - East,HCL NURSING,HNSI0001270,9539.82
Department of Health,Leicestershire Partnership NHS Trust,01/03/23,NURSE - BAND 5 - AGENCY,City Planned Care - West,HCL NURSING,HNSI0001270,13706.07
Department of Health,Leicestershire Partnership NHS Trust,01/03/23,NURSE - BAND 2 - AGENCY,Clarendon Ward,HCL NURSING,HNSI0001270,8446.77
Department of Health,Leicestershire Partnership NHS Trust,01/03/23,NURSE - BAND 5 - AGENCY,Clarendon Ward,HCL NURSING,HNSI0001270,3008.81
Department of Health,Leicestershire Partnership NHS Trust,01/03/23,NURSE - BAND 2 - AGENCY,Coalville Snibston Ward,HCL NURSING,HNSI0001270,3516.96
Department of Health,Leicestershire Partnership NHS Trust,01/03/23,NURSE - BAND 5 - AGENCY,Coalville Snibston Ward,HCL NURSING,HNSI0001270,5481.17
Department of Health,Leicestershire Partnership NHS Trust,01/03/23,NURSE - BAND 2 - AGENCY,Coalville Ward 2,HCL NURSING,HNSI0001270,1602.12
Department of Health,Leicestershire Partnership NHS Trust,01/03/23,NURSE - BAND 5 - AGENCY,Coalville Ward 2,HCL NURSING,HNSI0001270,1029.70
Department of Health,Leicestershire Partnership NHS Trust,01/03/23,NURSE - BAND 2 - AGENCY,Dalgliesh Ward,HCL NURSING,HNSI0001270,2693.19
Department of Health,Leicestershire Partnership NHS Trust,01/03/23,NURSE - BAND 5 - AGENCY,Dalgliesh Ward,HCL NURSING,HNSI0001270,3848.06
Department of Health,Leicestershire Partnership NHS Trust,01/03/23,NURSE - BAND 5 - AGENCY,"East Planned Care - Oadby,Wigston & Harborough",HCL NURSING,HNSI0001270,1416.83
Department of Health,Leicestershire Partnership NHS Trust,01/03/23,NURSE - BAND 2 - AGENCY,H&B Comm Hosp East Ward,HCL NURSING,HNSI0001270,22613.61
Department of Health,Leicestershire Partnership NHS Trust,01/03/23,NURSE - BAND 2 - AGENCY,H&B Comm Hosp North Ward,HCL NURSING,HNSI0001270,6561.84
Department of Health,Leicestershire Partnership NHS Trust,01/03/23,NURSE - BAND 5 - AGENCY,H&B Comm Hosp North Ward,HCL NURSING,HNSI0001270,4616.01
Department of Health,Leicestershire Partnership NHS Trust,01/03/23,NURSE - BAND 5 - AGENCY,Lough Swithland Ward,HCL NURSING,HNSI0001270,6244.72
Department of Health,Leicestershire Partnership NHS Trust,01/03/23,NURSE - BAND 2 - AGENCY,Rutland Ward Nursing,HCL NURSING,HNSI0001270,6573.83
Department of Health,Leicestershire Partnership NHS Trust,01/03/23,NURSE - BAND 5 - AGENCY,Rutland Ward Nursing,HCL NURSING,HNSI0001270,4921.44
Department of Health,Leicestershire Partnership NHS Trust,01/03/23,NURSE - BAND 2 - AGENCY,St Lukes Stroke Ward,HCL NURSING,HNSI0001270,8626.33
Department of Health,Leicestershire Partnership NHS Trust,01/03/23,NURSE - BAND 5 - AGENCY,St Lukes Stroke Ward,HCL NURSING,HNSI0001270,468.54
Department of Health,Leicestershire Partnership NHS Trust,01/03/23,NURSE - BAND 2 - AGENCY,St Lukes Ward 3,HCL NURSING,HNSI0001270,2293.84
Department of Health,Leicestershire Partnership NHS Trust,01/03/23,NURSE - BAND 5 - AGENCY,St Lukes Ward 3,HCL NURSING,HNSI0001270,2465.23
Department of Health,Leicestershire Partnership NHS Trust,01/03/23,Landline Telephone Rental / Calls,"Beaumont Leys Health Centre (P94, LPT)",VIRGIN MEDIA BUSINESS,853083001/004/0223,333.81
Department of Health,Leicestershire Partnership NHS Trust,01/03/23,Landline Telephone Rental / Calls,"Bennion Centre (including Forest Grange Day Unit) (P8, LPT)",VIRGIN MEDIA BUSINESS,853083001/004/0223,7.74
Department of Health,Leicestershire Partnership NHS Trust,01/03/23,Landline Telephone Rental / Calls,"Bradgate Unit (including Glenvale day Unit) (P7, LPT)",VIRGIN MEDIA BUSINESS,853083001/004/0223,9251.70
Department of Health,Leicestershire Partnership NHS Trust,01/03/23,Landline Telephone Rental / Calls,Braunstone Health and Social Care Centre (Part) (PROPCO),VIRGIN MEDIA BUSINESS,853083001/004/0223,1135.09
Department of Health,Leicestershire Partnership NHS Trust,01/03/23,Landline Telephone Rental / Calls,Bridge Park Plaza - First Floor (LPT),VIRGIN MEDIA BUSINESS,853083001/004/0223,2853.89
Department of Health,Leicestershire Partnership NHS Trust,01/03/23,Landline Telephone Rental / Calls,"Coalville Community Hospital (P138, LPT)",VIRGIN MEDIA BUSINESS,853083001/004/0223,1577.42
Department of Health,Leicestershire Partnership NHS Trust,01/03/23,Landline Telephone Rental / Calls,"Coalville Health Centre (P121, LPT)",VIRGIN MEDIA BUSINESS,853083001/004/0223,109.60
Department of Health,Leicestershire Partnership NHS Trust,01/03/23,Landline Telephone Rental / Calls,County Hall,VIRGIN MEDIA BUSINESS,853083001/004/0223,1528.93
Department of Health,Leicestershire Partnership NHS Trust,01/03/23,Landline Telephone Rental / Calls,Estates & Facilities Central,VIRGIN MEDIA BUSINESS,853083001/004/0223,10.64
Department of Health,Leicestershire Partnership NHS Trust,01/03/23,Landline Telephone Rental / Calls,"Evington Centre (P6, LPT)",VIRGIN MEDIA BUSINESS,853083001/004/0223,204.07
Department of Health,Leicestershire Partnership NHS Trust,01/03/23,Landline Telephone Rental / Calls,HIS,VIRGIN MEDIA BUSINESS,853083001/004/0223,2919.90
Department of Health,Leicestershire Partnership NHS Trust,01/03/23,Landline Telephone Rental / Calls,"Hawthorne Centre - Coalville (P14, LPT)",VIRGIN MEDIA BUSINESS,853083001/004/0223,513.65
Department of Health,Leicestershire Partnership NHS Trust,01/03/23,Landline Telephone Rental / Calls,"Hinckley and Bosworth Community Hospital (Sunnyside) (P133, LPT)",VIRGIN MEDIA BUSINESS,853083001/004/0223,977.71
Department of Health,Leicestershire Partnership NHS Trust,01/03/23,Landline Telephone Rental / Calls,Hood Park Leisure Centre Clinic,VIRGIN MEDIA BUSINESS,853083001/004/0223,23.22
Department of Health,Leicestershire Partnership NHS Trust,01/03/23,Landline Telephone Rental / Calls,"Hynca Lodge (P33, LPT)",VIRGIN MEDIA BUSINESS,853083001/004/0223,388.84
Department of Health,Leicestershire Partnership NHS Trust,01/03/23,Landline Telephone Rental / Calls,"Legion House, Ashby",VIRGIN MEDIA BUSINESS,853083001/004/0223,55.04
Department of Health,Leicestershire Partnership NHS Trust,01/03/23,Landline Telephone Rental / Calls,"Loughborough Hospital (P136, LPT)",VIRGIN MEDIA BUSINESS,853083001/004/0223,4298.36
Department of Health,Leicestershire Partnership NHS Trust,01/03/23,Landline Telephone Rental / Calls,Mawson House (LPT),VIRGIN MEDIA BUSINESS,853083001/004/0223,441.26
Department of Health,Leicestershire Partnership NHS Trust,01/03/23,Landline Telephone Rental / Calls,Merlyn Vaz Centre (CHP),VIRGIN MEDIA BUSINESS,853083001/004/0223,1444.06
Department of Health,Leicestershire Partnership NHS Trust,01/03/23,Landline Telephone Rental / Calls,"Mett Centre (P49, LPT)",VIRGIN MEDIA BUSINESS,853083001/004/0223,98.68
Department of Health,Leicestershire Partnership NHS Trust,01/03/23,Landline Telephone Rental / Calls,NSPCC Training Cente,VIRGIN MEDIA BUSINESS,853083001/004/0223,159.96
Department of Health,Leicestershire Partnership NHS Trust,01/03/23,Landline Telephone Rental / Calls,New Parks Health Centre (PROPCO),VIRGIN MEDIA BUSINESS,853083001/004/0223,1695.53
Department of Health,Leicestershire Partnership NHS Trust,01/03/23,Landline Telephone Rental / Calls,"OSL House (P54, LPT)",VIRGIN MEDIA BUSINESS,853083001/004/0223,919.82
Department of Health,Leicestershire Partnership NHS Trust,01/03/23,Landline Telephone Rental / Calls,"Orchard Resource Centre (P15, LPT)",VIRGIN MEDIA BUSINESS,853083001/004/0223,611.94
Department of Health,Leicestershire Partnership NHS Trust,01/03/23,Landline Telephone Rental / Calls,Pasley Road Health Centre (PROPCO),VIRGIN MEDIA BUSINESS,853083001/004/0223,174.77
Department of Health,Leicestershire Partnership NHS Trust,01/03/23,Landline Telephone Rental / Calls,"Prince Philip House (P96, LPT)",VIRGIN MEDIA BUSINESS,853083001/004/0223,1659.41
Department of Health,Leicestershire Partnership NHS Trust,01/03/23,Landline Telephone Rental / Calls,Rushey Mead Health Centre (PROPCO),VIRGIN MEDIA BUSINESS,853083001/004/0223,66.30
Department of Health,Leicestershire Partnership NHS Trust,01/03/23,Landline Telephone Rental / Calls,"Springfield Road Health Centre (P92, LPT)",VIRGIN MEDIA BUSINESS,853083001/004/0223,332.03
Department of Health,Leicestershire Partnership NHS Trust,01/03/23,Landline Telephone Rental / Calls,"St Peters Health Center (Part 1st and 2nd floors) (P66, LPT)",VIRGIN MEDIA BUSINESS,853083001/004/0223,1688.02
Department of Health,Leicestershire Partnership NHS Trust,01/03/23,Landline Telephone Rental / Calls,"Swithland House - London Road 352 (P44, LPT)",VIRGIN MEDIA BUSINESS,853083001/004/0223,230.28
Department of Health,Leicestershire Partnership NHS Trust,01/03/23,Landline Telephone Rental / Calls,"The Cedars (P19, LPT)",VIRGIN MEDIA BUSINESS,853083001/004/0223,748.61
Department of Health,Leicestershire Partnership NHS Trust,01/03/23,Landline Telephone Rental / Calls,"The Willows - Cordelia Close (P22, LPT)",VIRGIN MEDIA BUSINESS,853083001/004/0223,532.72
Department of Health,Leicestershire Partnership NHS Trust,01/03/23,Landline Telephone Rental / Calls,"Valentine Centre (P3, LPT)",VIRGIN MEDIA BUSINESS,853083001/004/0223,1903.58
Department of Health,Leicestershire Partnership NHS Trust,01/03/23,Landline Telephone Rental / Calls,Warren Park Way 25 (PROPCO),VIRGIN MEDIA BUSINESS,853083001/004/0223,762.78
Department of Health,Leicestershire Partnership NHS Trust,01/03/23,Landline Telephone Rental / Calls,"Westcotes Group -Westcotes House (P78, LPT)",VIRGIN MEDIA BUSINESS,853083001/004/0223,1105.27
Department of Health,Leicestershire Partnership NHS Trust,01/03/23,Landline Telephone Rental / Calls,"Winstanley Drive Health Centre (P8, LPT)",VIRGIN MEDIA BUSINESS,853083001/004/0223,46.44
Department of Health,Leicestershire Partnership NHS Trust,02/03/23,Medical Equipment Repairs / Maintenance,Medical Devices Maintenance (LPT),SUPPLY CHAIN CO LTD,2123007963,37013.09
Department of Health,Leicestershire Partnership NHS Trust,02/03/23,Prep_ LT1y -Prepayments Lease Cars,Balance Sheet Collection,LEASEPLAN,511040381,18876.55
Department of Health,Leicestershire Partnership NHS Trust,02/03/23,Trade_Drs_LT1y -Lease Cars Invoicing Contrl Ac.,Balance Sheet Collection,LEASEPLAN,511040381,44.00
Department of Health,Leicestershire Partnership NHS Trust,02/03/23,VAT_Drs _ LT1y -VAT Contracted Out Services Input Tax,Balance Sheet Collection,LEASEPLAN,511040381,70.25
Department of Health,Leicestershire Partnership NHS Trust,02/03/23,Leased / Hired Vehicles,COVID 19,LEASEPLAN,511040381,472.36
Department of Health,Leicestershire Partnership NHS Trust,02/03/23,Leased / Hired Vehicles,Crisis Response and Home Treatment,LEASEPLAN,511040381,94.42
Department of Health,Leicestershire Partnership NHS Trust,02/03/23,Leased / Hired Vehicles,Diana Respiratory Physio,LEASEPLAN,511040381,1004.96
Department of Health,Leicestershire Partnership NHS Trust,02/03/23,Leased / Hired Vehicles,Lead Nurse & Governance Team,LEASEPLAN,511040381,665.95
Department of Health,Leicestershire Partnership NHS Trust,02/03/23,Leased / Hired Vehicles,Outreach,LEASEPLAN,511040381,638.96
Department of Health,Leicestershire Partnership NHS Trust,02/03/23,Leased / Hired Vehicles,School Age Immunisation and Vaccinations,LEASEPLAN,511040381,1737.56
Department of Health,Leicestershire Partnership NHS Trust,02/03/23,Leased / Hired Vehicles,Support Services (Learn Dis),LEASEPLAN,511040381,40.00
Department of Health,Leicestershire Partnership NHS Trust,02/03/23,Leased / Hired Vehicles,West Planned Care  - Charnwood Hub,LEASEPLAN,511040381,58.26
Department of Health,Leicestershire Partnership NHS Trust,02/03/23,Leased / Hired Vehicles,West Planned Care - NWL Hub,LEASEPLAN,511040381,25.00
Department of Health,Leicestershire Partnership NHS Trust,02/03/23,Leased / Hired Vehicles,Willows Unit,LEASEPLAN,511040381,25.00
Department of Health,Leicestershire Partnership NHS Trust,02/03/23,Unitary Payment,"The Agnes Unit (AKA Assessment and Treatment Centre) (P85, LPT)",ARDEN PARTNERSHIP (LEICESTER),SI0117,124297.89
Department of Health,Leicestershire Partnership NHS Trust,02/03/23,Rent,"St Peters Health Center (Part 1st and 2nd floors) (P66, LPT)",LEICESTER LIFT CO,LEP1-SI1192,30082.84
Department of Health,Leicestershire Partnership NHS Trust,03/03/23,Nurse - Band 6 -Agency,AMH - Central Access Point,HCL NURSING,HNSI0001276,1517.28
Department of Health,Leicestershire Partnership NHS Trust,03/03/23,NURSE - BAND 5 - AGENCY,Adult City East CMHT - Merlyn Vaz,HCL NURSING,HNSI0001276,874.38
Department of Health,Leicestershire Partnership NHS Trust,03/03/23,Nurse - Band 7 - Agency,Adult County South Leicestershire CMHT,HCL NURSING,HNSI0001276,1365.26
Department of Health,Leicestershire Partnership NHS Trust,03/03/23,NURSE - BAND 2 - AGENCY,Agnes Unit,HCL NURSING,HNSI0001276,24514.08
Department of Health,Leicestershire Partnership NHS Trust,03/03/23,NURSE - BAND 5 - AGENCY,Agnes Unit,HCL NURSING,HNSI0001276,26598.57
Department of Health,Leicestershire Partnership NHS Trust,03/03/23,NURSE - BAND 2 - AGENCY,Ashby Ward (Bradgate Unit),HCL NURSING,HNSI0001276,3456.90
Department of Health,Leicestershire Partnership NHS Trust,03/03/23,NURSE - BAND 5 - AGENCY,Ashby Ward (Bradgate Unit),HCL NURSING,HNSI0001276,13104.27
Department of Health,Leicestershire Partnership NHS Trust,03/03/23,NURSE - BAND 2 - AGENCY,Aston Ward Bradgate Unit (Prev Welford),HCL NURSING,HNSI0001276,5213.95
Department of Health,Leicestershire Partnership NHS Trust,03/03/23,NURSE - BAND 5 - AGENCY,Aston Ward Bradgate Unit (Prev Welford),HCL NURSING,HNSI0001276,4893.95
Department of Health,Leicestershire Partnership NHS Trust,03/03/23,NURSE - BAND 2 - AGENCY,Beaumont Ward - Bradgate Unit,HCL NURSING,HNSI0001276,1180.86
Department of Health,Leicestershire Partnership NHS Trust,03/03/23,NURSE - BAND 5 - AGENCY,Beaumont Ward - Bradgate Unit,HCL NURSING,HNSI0001276,8796.49
Department of Health,Leicestershire Partnership NHS Trust,03/03/23,NURSE - BAND 2 - AGENCY,Belvoir Psychiatric Intensive Care Unit,HCL NURSING,HNSI0001276,6511.22
Department of Health,Leicestershire Partnership NHS Trust,03/03/23,NURSE - BAND 5 - AGENCY,Belvoir Psychiatric Intensive Care Unit,HCL NURSING,HNSI0001276,3109.59
Department of Health,Leicestershire Partnership NHS Trust,03/03/23,NURSE - BAND 2 - AGENCY,Bosworth Ward - Bradgate Unit,HCL NURSING,HNSI0001276,508.45
Department of Health,Leicestershire Partnership NHS Trust,03/03/23,NURSE - BAND 5 - AGENCY,Bosworth Ward - Bradgate Unit,HCL NURSING,HNSI0001276,3171.77
Department of Health,Leicestershire Partnership NHS Trust,03/03/23,NURSE - BAND 2 - AGENCY,Cedar (Willows),HCL NURSING,HNSI0001276,1029.21
Department of Health,Leicestershire Partnership NHS Trust,03/03/23,NURSE - BAND 5 - AGENCY,Cedar (Willows),HCL NURSING,HNSI0001276,1100.65
Department of Health,Leicestershire Partnership NHS Trust,03/03/23,Nurse - Band 6 -Agency,City West CMHT MHSOP,HCL NURSING,HNSI0001276,1046.25
Department of Health,Leicestershire Partnership NHS Trust,03/03/23,NURSE - BAND 2 - AGENCY,Coleman Ward,HCL NURSING,HNSI0001276,2641.39
Department of Health,Leicestershire Partnership NHS Trust,03/03/23,NURSE - BAND 5 - AGENCY,Coleman Ward,HCL NURSING,HNSI0001276,6623.88
Department of Health,Leicestershire Partnership NHS Trust,03/03/23,Nurse - Band 6 -Agency,Crisis Resolution,HCL NURSING,HNSI0001276,340.43
Department of Health,Leicestershire Partnership NHS Trust,03/03/23,NURSE - BAND 2 - AGENCY,Griffin Ward (HPC),HCL NURSING,HNSI0001276,5815.16
Department of Health,Leicestershire Partnership NHS Trust,03/03/23,NURSE - BAND 5 - AGENCY,Griffin Ward (HPC),HCL NURSING,HNSI0001276,3672.94
Department of Health,Leicestershire Partnership NHS Trust,03/03/23,NURSE - BAND 2 - AGENCY,Gwendolen Ward,HCL NURSING,HNSI0001276,4875.60
Department of Health,Leicestershire Partnership NHS Trust,03/03/23,NURSE - BAND 5 - AGENCY,Gwendolen Ward,HCL NURSING,HNSI0001276,6019.65
Department of Health,Leicestershire Partnership NHS Trust,03/03/23,NURSE - BAND 2 - AGENCY,Heather Ward,HCL NURSING,HNSI0001276,6267.75
Department of Health,Leicestershire Partnership NHS Trust,03/03/23,NURSE - BAND 5 - AGENCY,Heather Ward,HCL NURSING,HNSI0001276,6171.82
Department of Health,Leicestershire Partnership NHS Trust,03/03/23,NURSE - BAND 2 - AGENCY,Kirby Ward,HCL NURSING,HNSI0001276,2047.26
Department of Health,Leicestershire Partnership NHS Trust,03/03/23,NURSE - BAND 5 - AGENCY,Kirby Ward,HCL NURSING,HNSI0001276,3081.07
Department of Health,Leicestershire Partnership NHS Trust,03/03/23,NURSE - BAND 2 - AGENCY,Maple Ward,HCL NURSING,HNSI0001276,887.01
Department of Health,Leicestershire Partnership NHS Trust,03/03/23,NURSE - BAND 5 - AGENCY,Maple Ward,HCL NURSING,HNSI0001276,951.85
Department of Health,Leicestershire Partnership NHS Trust,03/03/23,Nurse - Band 6 -Agency,Mental Health Liaison Team,HCL NURSING,HNSI0001276,1245.37
Department of Health,Leicestershire Partnership NHS Trust,03/03/23,NURSE - BAND 2 - AGENCY,Mill Lodge,HCL NURSING,HNSI0001276,1974.62
Department of Health,Leicestershire Partnership NHS Trust,03/03/23,NURSE - BAND 5 - AGENCY,Mill Lodge,HCL NURSING,HNSI0001276,514.85
Department of Health,Leicestershire Partnership NHS Trust,03/03/23,NURSE - BAND 2 - AGENCY,Phoenix Ward (HPC),HCL NURSING,HNSI0001276,1875.48
Department of Health,Leicestershire Partnership NHS Trust,03/03/23,NURSE - BAND 5 - AGENCY,Phoenix Ward (HPC),HCL NURSING,HNSI0001276,3413.34
Department of Health,Leicestershire Partnership NHS Trust,03/03/23,NURSE - BAND 2 - AGENCY,Place Of Safety Assessment Unit,HCL NURSING,HNSI0001276,244.00
Department of Health,Leicestershire Partnership NHS Trust,03/03/23,NURSE - BAND 5 - AGENCY,Place Of Safety Assessment Unit,HCL NURSING,HNSI0001276,3490.47
Department of Health,Leicestershire Partnership NHS Trust,03/03/23,NURSE - BAND 2 - AGENCY,Stewart House,HCL NURSING,HNSI0001276,243.08
Department of Health,Leicestershire Partnership NHS Trust,03/03/23,NURSE - BAND 2 - AGENCY,Sycamore (Willows),HCL NURSING,HNSI0001276,1226.31
Department of Health,Leicestershire Partnership NHS Trust,03/03/23,NURSE - BAND 5 - AGENCY,Sycamore (Willows),HCL NURSING,HNSI0001276,1517.69
Department of Health,Leicestershire Partnership NHS Trust,03/03/23,NURSE - BAND 5 - AGENCY,Thornton Ward - Bradgate Unit,HCL NURSING,HNSI0001276,2958.48
Department of Health,Leicestershire Partnership NHS Trust,03/03/23,Nurse - Band 6 -Agency,AMH - Central Access Point,HCL NURSING,HNSI0001269,1657.22
Department of Health,Leicestershire Partnership NHS Trust,03/03/23,Nurse - Band 7 - Agency,Adult County South Leicestershire CMHT,HCL NURSING,HNSI0001269,1365.26
Department of Health,Leicestershire Partnership NHS Trust,03/03/23,NURSE - BAND 2 - AGENCY,Agnes Unit,HCL NURSING,HNSI0001269,23367.67
Department of Health,Leicestershire Partnership NHS Trust,03/03/23,NURSE - BAND 5 - AGENCY,Agnes Unit,HCL NURSING,HNSI0001269,26919.62
Department of Health,Leicestershire Partnership NHS Trust,03/03/23,NURSE - BAND 2 - AGENCY,Ashby Ward (Bradgate Unit),HCL NURSING,HNSI0001269,10182.66
Department of Health,Leicestershire Partnership NHS Trust,03/03/23,NURSE - BAND 5 - AGENCY,Ashby Ward (Bradgate Unit),HCL NURSING,HNSI0001269,12212.52
Department of Health,Leicestershire Partnership NHS Trust,03/03/23,NURSE - BAND 2 - AGENCY,Aston Ward Bradgate Unit (Prev Welford),HCL NURSING,HNSI0001269,7870.21
Department of Health,Leicestershire Partnership NHS Trust,03/03/23,NURSE - BAND 5 - AGENCY,Aston Ward Bradgate Unit (Prev Welford),HCL NURSING,HNSI0001269,6461.63
Department of Health,Leicestershire Partnership NHS Trust,03/03/23,NURSE - BAND 2 - AGENCY,Beaumont Ward - Bradgate Unit,HCL NURSING,HNSI0001269,1546.97
Department of Health,Leicestershire Partnership NHS Trust,03/03/23,NURSE - BAND 5 - AGENCY,Beaumont Ward - Bradgate Unit,HCL NURSING,HNSI0001269,12724.89
Department of Health,Leicestershire Partnership NHS Trust,03/03/23,NURSE - BAND 2 - AGENCY,Belvoir Psychiatric Intensive Care Unit,HCL NURSING,HNSI0001269,7048.50
Department of Health,Leicestershire Partnership NHS Trust,03/03/23,NURSE - BAND 5 - AGENCY,Belvoir Psychiatric Intensive Care Unit,HCL NURSING,HNSI0001269,7232.60
Department of Health,Leicestershire Partnership NHS Trust,03/03/23,NURSE - BAND 2 - AGENCY,Bosworth Ward - Bradgate Unit,HCL NURSING,HNSI0001269,964.88
Department of Health,Leicestershire Partnership NHS Trust,03/03/23,NURSE - BAND 5 - AGENCY,Bosworth Ward - Bradgate Unit,HCL NURSING,HNSI0001269,5276.07
Department of Health,Leicestershire Partnership NHS Trust,03/03/23,NURSE - BAND 2 - AGENCY,Cedar (Willows),HCL NURSING,HNSI0001269,567.07
Department of Health,Leicestershire Partnership NHS Trust,03/03/23,NURSE - BAND 5 - AGENCY,Cedar (Willows),HCL NURSING,HNSI0001269,449.54
Department of Health,Leicestershire Partnership NHS Trust,03/03/23,Nurse - Band 6 -Agency,City West CMHT MHSOP,HCL NURSING,HNSI0001269,1004.40
Department of Health,Leicestershire Partnership NHS Trust,03/03/23,NURSE - BAND 2 - AGENCY,Coleman Ward,HCL NURSING,HNSI0001269,2307.75
Department of Health,Leicestershire Partnership NHS Trust,03/03/23,NURSE - BAND 5 - AGENCY,Coleman Ward,HCL NURSING,HNSI0001269,9741.39
Department of Health,Leicestershire Partnership NHS Trust,03/03/23,Nurse - Band 6 -Agency,Crisis Resolution,HCL NURSING,HNSI0001269,1939.65
Department of Health,Leicestershire Partnership NHS Trust,03/03/23,NURSE - BAND 2 - AGENCY,Griffin Ward (HPC),HCL NURSING,HNSI0001269,2967.86
Department of Health,Leicestershire Partnership NHS Trust,03/03/23,NURSE - BAND 5 - AGENCY,Griffin Ward (HPC),HCL NURSING,HNSI0001269,5370.20
Department of Health,Leicestershire Partnership NHS Trust,03/03/23,NURSE - BAND 2 - AGENCY,Gwendolen Ward,HCL NURSING,HNSI0001269,4695.79
Department of Health,Leicestershire Partnership NHS Trust,03/03/23,NURSE - BAND 5 - AGENCY,Gwendolen Ward,HCL NURSING,HNSI0001269,1817.89
Department of Health,Leicestershire Partnership NHS Trust,03/03/23,NURSE - BAND 2 - AGENCY,Heather Ward,HCL NURSING,HNSI0001269,1614.30
Department of Health,Leicestershire Partnership NHS Trust,03/03/23,NURSE - BAND 5 - AGENCY,Heather Ward,HCL NURSING,HNSI0001269,4112.67
Department of Health,Leicestershire Partnership NHS Trust,03/03/23,NURSE - BAND 2 - AGENCY,Kirby Ward,HCL NURSING,HNSI0001269,1619.19
Department of Health,Leicestershire Partnership NHS Trust,03/03/23,NURSE - BAND 5 - AGENCY,Kirby Ward,HCL NURSING,HNSI0001269,596.92
Department of Health,Leicestershire Partnership NHS Trust,03/03/23,NURSE - BAND 2 - AGENCY,Maple Ward,HCL NURSING,HNSI0001269,2696.17
Department of Health,Leicestershire Partnership NHS Trust,03/03/23,Nurse - Band 6 -Agency,Mental Health Liaison Team,HCL NURSING,HNSI0001269,1773.46
Department of Health,Leicestershire Partnership NHS Trust,03/03/23,NURSE - BAND 2 - AGENCY,Mill Lodge,HCL NURSING,HNSI0001269,538.97
Department of Health,Leicestershire Partnership NHS Trust,03/03/23,NURSE - BAND 2 - AGENCY,Phoenix Ward (HPC),HCL NURSING,HNSI0001269,1146.66
Department of Health,Leicestershire Partnership NHS Trust,03/03/23,NURSE - BAND 5 - AGENCY,Phoenix Ward (HPC),HCL NURSING,HNSI0001269,2015.28
Department of Health,Leicestershire Partnership NHS Trust,03/03/23,NURSE - BAND 2 - AGENCY,Place Of Safety Assessment Unit,HCL NURSING,HNSI0001269,2425.30
Department of Health,Leicestershire Partnership NHS Trust,03/03/23,NURSE - BAND 5 - AGENCY,Place Of Safety Assessment Unit,HCL NURSING,HNSI0001269,3536.17
Department of Health,Leicestershire Partnership NHS Trust,03/03/23,NURSE - BAND 2 - AGENCY,Stewart House,HCL NURSING,HNSI0001269,846.20
Department of Health,Leicestershire Partnership NHS Trust,03/03/23,NURSE - BAND 5 - AGENCY,Stewart House,HCL NURSING,HNSI0001269,449.54
Department of Health,Leicestershire Partnership NHS Trust,03/03/23,NURSE - BAND 2 - AGENCY,Sycamore (Willows),HCL NURSING,HNSI0001269,634.79
Department of Health,Leicestershire Partnership NHS Trust,03/03/23,NURSE - BAND 5 - AGENCY,Thornton Ward - Bradgate Unit,HCL NURSING,HNSI0001269,1536.24
Department of Health,Leicestershire Partnership NHS Trust,03/03/23,Nurse - Band 6 -Agency,CAMHS HUB / CAP,HCL WORKFORCE SOLUTIONS,HWSI0001592,6954.79
Department of Health,Leicestershire Partnership NHS Trust,03/03/23,Nurse - Band 6 -Agency,CAMHS Waiting List Monies,HCL WORKFORCE SOLUTIONS,HWSI0001592,16135.57
Department of Health,Leicestershire Partnership NHS Trust,03/03/23,Nurse - Band 6 -Agency,Crisis Response and Home Treatment,HCL WORKFORCE SOLUTIONS,HWSI0001592,2257.26
Department of Health,Leicestershire Partnership NHS Trust,03/03/23,NURSE - BAND 2 - AGENCY,CAMHS Inpatient Service,HCL NURSING,HNSI0001278,19443.50
Department of Health,Leicestershire Partnership NHS Trust,03/03/23,NURSE - BAND 5 - AGENCY,CAMHS Inpatient Service,HCL NURSING,HNSI0001278,6839.47
Department of Health,Leicestershire Partnership NHS Trust,03/03/23,NURSE - BAND 2 - AGENCY,CAMHS Learning Disabilities and Outreach Team,HCL NURSING,HNSI0001278,1568.75
Department of Health,Leicestershire Partnership NHS Trust,03/03/23,Nurse - Band 6 -Agency,CAMHS Waiting List Monies,HCL NURSING,HNSI0001278,7873.30
Department of Health,Leicestershire Partnership NHS Trust,03/03/23,NURSE - BAND 2 - AGENCY,Welford Ward (Prev Langley),HCL NURSING,HNSI0001278,1250.62
Department of Health,Leicestershire Partnership NHS Trust,03/03/23,NURSE - BAND 5 - AGENCY,Welford Ward (Prev Langley),HCL NURSING,HNSI0001278,531.85
Department of Health,Leicestershire Partnership NHS Trust,03/03/23,Nurse - Band 6 -Agency,CAMHS HUB / CAP,HCL WORKFORCE SOLUTIONS,HWSI0001583,6316.16
Department of Health,Leicestershire Partnership NHS Trust,03/03/23,Nurse - Band 6 -Agency,CAMHS Waiting List Monies,HCL WORKFORCE SOLUTIONS,HWSI0001583,17835.31
Department of Health,Leicestershire Partnership NHS Trust,03/03/23,Nurse - Band 6 -Agency,Crisis Response and Home Treatment,HCL WORKFORCE SOLUTIONS,HWSI0001583,1934.86
Department of Health,Leicestershire Partnership NHS Trust,03/03/23,NURSE - BAND 2 - AGENCY,CAMHS Inpatient Service,HCL NURSING,HNSI0001271,18676.40
Department of Health,Leicestershire Partnership NHS Trust,03/03/23,NURSE - BAND 5 - AGENCY,CAMHS Inpatient Service,HCL NURSING,HNSI0001271,4505.22
Department of Health,Leicestershire Partnership NHS Trust,03/03/23,NURSE - BAND 2 - AGENCY,CAMHS Learning Disabilities and Outreach Team,HCL NURSING,HNSI0001271,1580.74
Department of Health,Leicestershire Partnership NHS Trust,03/03/23,Nurse - Band 6 -Agency,CAMHS Waiting List Monies,HCL NURSING,HNSI0001271,5273.81
Department of Health,Leicestershire Partnership NHS Trust,03/03/23,NURSE - BAND 2 - AGENCY,Welford Ward (Prev Langley),HCL NURSING,HNSI0001271,4041.03
Department of Health,Leicestershire Partnership NHS Trust,03/03/23,NURSE - BAND 5 - AGENCY,Welford Ward (Prev Langley),HCL NURSING,HNSI0001271,5686.49
Department of Health,Leicestershire Partnership NHS Trust,06/03/23,HR / Payroll Services,HR Employment Services,LINCOLNSHIRE PART NHSFT(RP7),L0000702,34400.00
Department of Health,Leicestershire Partnership NHS Trust,06/03/23,Legal Fees,Chief Executives Office,BROWNE JACOBSON LLP,CR-000009337,-26639.40
Department of Health,Leicestershire Partnership NHS Trust,06/03/23,Payroll Deductions -Home Electronics 77 Feb 23,Balance Sheet Collection,SME HCI LTD,144258,31888.90
Department of Health,Leicestershire Partnership NHS Trust,06/03/23,External Consultancy Fees,FM Transformation,TURNER & TOWNSEND COST MAN,PRIV00003061,30285.36
Department of Health,Leicestershire Partnership NHS Trust,07/03/23,Services / Recharges from NHS Trusts,Adult Eating Disorder Collaborative,Midlands Partnership NHS FT,I0103491,61896.15
Department of Health,Leicestershire Partnership NHS Trust,07/03/23,Network Costs - WAN Maint,HIS Infrastructure,CCS MEDIA,4799692,31444.56
Department of Health,Leicestershire Partnership NHS Trust,08/03/23,Network Costs - WAN Maint,HIS Infrastructure,VIRGIN MEDIA BUSINESS,262421-206,36115.31
Department of Health,Leicestershire Partnership NHS Trust,08/03/23,Computer License  Fees,Finance Department,ORACLE CORPORATION,460090339,33450.71
Department of Health,Leicestershire Partnership NHS Trust,09/03/23,Med Trainees - FY1,Medical Trainees,UHL NHS TRUST (RWE),L0268480,28052.06
Department of Health,Leicestershire Partnership NHS Trust,09/03/23,WIP Project Not in BS - Buildings excl Dwellings,Work in Progress,TILBURY DOUGLAS CONSTRUCTION LTD,23030082,750331.34
Department of Health,Leicestershire Partnership NHS Trust,09/03/23,Course / Training Expenses,HIS,META UK LTD,010323,46350.00
Department of Health,Leicestershire Partnership NHS Trust,09/03/23,Professional & Technical Agency,LLR Shared Care Record Programme,SYNANETICS LTD,INV-00429,158520.00
Department of Health,Leicestershire Partnership NHS Trust,09/03/23,NURSE - BAND 2 - AGENCY,Beechwood Ward,HCL NURSING,HNSI0001277,8995.71
Department of Health,Leicestershire Partnership NHS Trust,09/03/23,NURSE - BAND 5 - AGENCY,Beechwood Ward,HCL NURSING,HNSI0001277,4930.91
Department of Health,Leicestershire Partnership NHS Trust,09/03/23,NURSE - BAND 2 - AGENCY,CHS Surge Ward,HCL NURSING,HNSI0001277,6039.72
Department of Health,Leicestershire Partnership NHS Trust,09/03/23,NURSE - BAND 5 - AGENCY,CHS Surge Ward,HCL NURSING,HNSI0001277,9504.15
Department of Health,Leicestershire Partnership NHS Trust,09/03/23,NURSE - BAND 5 - AGENCY,City Planned Care - East,HCL NURSING,HNSI0001277,10044.96
Department of Health,Leicestershire Partnership NHS Trust,09/03/23,NURSE - BAND 5 - AGENCY,City Planned Care - West,HCL NURSING,HNSI0001277,12722.20
Department of Health,Leicestershire Partnership NHS Trust,09/03/23,NURSE - BAND 2 - AGENCY,Clarendon Ward,HCL NURSING,HNSI0001277,9334.20
Department of Health,Leicestershire Partnership NHS Trust,09/03/23,NURSE - BAND 5 - AGENCY,Clarendon Ward,HCL NURSING,HNSI0001277,3897.89
Department of Health,Leicestershire Partnership NHS Trust,09/03/23,NURSE - BAND 2 - AGENCY,Coalville Snibston Ward,HCL NURSING,HNSI0001277,3308.88
Department of Health,Leicestershire Partnership NHS Trust,09/03/23,NURSE - BAND 5 - AGENCY,Coalville Snibston Ward,HCL NURSING,HNSI0001277,2904.18
Department of Health,Leicestershire Partnership NHS Trust,09/03/23,NURSE - BAND 2 - AGENCY,Coalville Ward 2,HCL NURSING,HNSI0001277,4770.62
Department of Health,Leicestershire Partnership NHS Trust,09/03/23,NURSE - BAND 5 - AGENCY,Coalville Ward 2,HCL NURSING,HNSI0001277,514.85
Department of Health,Leicestershire Partnership NHS Trust,09/03/23,NURSE - BAND 2 - AGENCY,Dalgliesh Ward,HCL NURSING,HNSI0001277,3567.33
Department of Health,Leicestershire Partnership NHS Trust,09/03/23,NURSE - BAND 5 - AGENCY,Dalgliesh Ward,HCL NURSING,HNSI0001277,3609.13
Department of Health,Leicestershire Partnership NHS Trust,09/03/23,NURSE - BAND 5 - AGENCY,"East Planned Care - Oadby,Wigston & Harborough",HCL NURSING,HNSI0001277,1024.99
Department of Health,Leicestershire Partnership NHS Trust,09/03/23,NURSE - BAND 2 - AGENCY,H&B Comm Hosp East Ward,HCL NURSING,HNSI0001277,10791.10
Department of Health,Leicestershire Partnership NHS Trust,09/03/23,NURSE - BAND 5 - AGENCY,H&B Comm Hosp East Ward,HCL NURSING,HNSI0001277,13860.59
Department of Health,Leicestershire Partnership NHS Trust,09/03/23,NURSE - BAND 2 - AGENCY,H&B Comm Hosp North Ward,HCL NURSING,HNSI0001277,2699.94
Department of Health,Leicestershire Partnership NHS Trust,09/03/23,NURSE - BAND 5 - AGENCY,H&B Comm Hosp North Ward,HCL NURSING,HNSI0001277,4510.45
Department of Health,Leicestershire Partnership NHS Trust,09/03/23,NURSE - BAND 2 - AGENCY,Lough Swithland Ward,HCL NURSING,HNSI0001277,3048.64
Department of Health,Leicestershire Partnership NHS Trust,09/03/23,NURSE - BAND 5 - AGENCY,Lough Swithland Ward,HCL NURSING,HNSI0001277,4615.15
Department of Health,Leicestershire Partnership NHS Trust,09/03/23,NURSE - BAND 2 - AGENCY,Rutland Ward Nursing,HCL NURSING,HNSI0001277,7077.70
Department of Health,Leicestershire Partnership NHS Trust,09/03/23,NURSE - BAND 5 - AGENCY,Rutland Ward Nursing,HCL NURSING,HNSI0001277,5838.19
Department of Health,Leicestershire Partnership NHS Trust,09/03/23,NURSE - BAND 2 - AGENCY,St Lukes Stroke Ward,HCL NURSING,HNSI0001277,8265.64
Department of Health,Leicestershire Partnership NHS Trust,09/03/23,NURSE - BAND 2 - AGENCY,St Lukes Ward 3,HCL NURSING,HNSI0001277,3055.97
Department of Health,Leicestershire Partnership NHS Trust,09/03/23,NURSE - BAND 5 - AGENCY,West Planned Care  - Charnwood Hub,HCL NURSING,HNSI0001277,21.31
Department of Health,Leicestershire Partnership NHS Trust,09/03/23,Payroll Deductions -NEST EES Pensions,Balance Sheet Collection,NEST,P11DEDS-313/2023,15819.29
Department of Health,Leicestershire Partnership NHS Trust,09/03/23,Payroll Deductions -NEST ERS Pensions,Balance Sheet Collection,NEST,P11DEDS-313/2023,11858.25
Department of Health,Leicestershire Partnership NHS Trust,10/03/23,NURSE - BAND 2 - AGENCY,Beechwood Ward,HCL NURSING,HNSI0001281,13737.08
Department of Health,Leicestershire Partnership NHS Trust,10/03/23,NURSE - BAND 5 - AGENCY,Beechwood Ward,HCL NURSING,HNSI0001281,5079.87
Department of Health,Leicestershire Partnership NHS Trust,10/03/23,NURSE - BAND 2 - AGENCY,CHS Surge Ward,HCL NURSING,HNSI0001281,7373.16
Department of Health,Leicestershire Partnership NHS Trust,10/03/23,NURSE - BAND 5 - AGENCY,CHS Surge Ward,HCL NURSING,HNSI0001281,6923.84
Department of Health,Leicestershire Partnership NHS Trust,10/03/23,NURSE - BAND 5 - AGENCY,City Planned Care - East,HCL NURSING,HNSI0001281,14334.47
Department of Health,Leicestershire Partnership NHS Trust,10/03/23,NURSE - BAND 5 - AGENCY,City Planned Care - West,HCL NURSING,HNSI0001281,13107.35
Department of Health,Leicestershire Partnership NHS Trust,10/03/23,NURSE - BAND 2 - AGENCY,Clarendon Ward,HCL NURSING,HNSI0001281,9547.12
Department of Health,Leicestershire Partnership NHS Trust,10/03/23,NURSE - BAND 5 - AGENCY,Clarendon Ward,HCL NURSING,HNSI0001281,2384.97
Department of Health,Leicestershire Partnership NHS Trust,10/03/23,NURSE - BAND 2 - AGENCY,Coalville Snibston Ward,HCL NURSING,HNSI0001281,3664.31
Department of Health,Leicestershire Partnership NHS Trust,10/03/23,NURSE - BAND 5 - AGENCY,Coalville Snibston Ward,HCL NURSING,HNSI0001281,2746.63
Department of Health,Leicestershire Partnership NHS Trust,10/03/23,NURSE - BAND 2 - AGENCY,Coalville Ward 2,HCL NURSING,HNSI0001281,6222.07
Department of Health,Leicestershire Partnership NHS Trust,10/03/23,NURSE - BAND 5 - AGENCY,Coalville Ward 2,HCL NURSING,HNSI0001281,1708.35
Department of Health,Leicestershire Partnership NHS Trust,10/03/23,NURSE - BAND 2 - AGENCY,Dalgliesh Ward,HCL NURSING,HNSI0001281,4806.31
Department of Health,Leicestershire Partnership NHS Trust,10/03/23,NURSE - BAND 5 - AGENCY,Dalgliesh Ward,HCL NURSING,HNSI0001281,3561.32
Department of Health,Leicestershire Partnership NHS Trust,10/03/23,NURSE - BAND 5 - AGENCY,"East Planned Care - Oadby,Wigston & Harborough",HCL NURSING,HNSI0001281,1356.33
Department of Health,Leicestershire Partnership NHS Trust,10/03/23,NURSE - BAND 2 - AGENCY,H&B Comm Hosp East Ward,HCL NURSING,HNSI0001281,6492.57
Department of Health,Leicestershire Partnership NHS Trust,10/03/23,NURSE - BAND 5 - AGENCY,H&B Comm Hosp East Ward,HCL NURSING,HNSI0001281,11679.30
Department of Health,Leicestershire Partnership NHS Trust,10/03/23,NURSE - BAND 2 - AGENCY,H&B Comm Hosp North Ward,HCL NURSING,HNSI0001281,4271.32
Department of Health,Leicestershire Partnership NHS Trust,10/03/23,NURSE - BAND 5 - AGENCY,H&B Comm Hosp North Ward,HCL NURSING,HNSI0001281,4747.88
Department of Health,Leicestershire Partnership NHS Trust,10/03/23,NURSE - BAND 2 - AGENCY,Lough Swithland Ward,HCL NURSING,HNSI0001281,2944.04
Department of Health,Leicestershire Partnership NHS Trust,10/03/23,NURSE - BAND 5 - AGENCY,Lough Swithland Ward,HCL NURSING,HNSI0001281,2227.36
Department of Health,Leicestershire Partnership NHS Trust,10/03/23,NURSE - BAND 2 - AGENCY,Rutland Ward Nursing,HCL NURSING,HNSI0001281,2464.43
Department of Health,Leicestershire Partnership NHS Trust,10/03/23,NURSE - BAND 5 - AGENCY,Rutland Ward Nursing,HCL NURSING,HNSI0001281,514.85
Department of Health,Leicestershire Partnership NHS Trust,10/03/23,NURSE - BAND 2 - AGENCY,St Lukes Stroke Ward,HCL NURSING,HNSI0001281,5880.72
Department of Health,Leicestershire Partnership NHS Trust,10/03/23,NURSE - BAND 5 - AGENCY,St Lukes Stroke Ward,HCL NURSING,HNSI0001281,3813.23
Department of Health,Leicestershire Partnership NHS Trust,10/03/23,NURSE - BAND 2 - AGENCY,St Lukes Ward 3,HCL NURSING,HNSI0001281,2743.41
Department of Health,Leicestershire Partnership NHS Trust,10/03/23,WIP Project Not in BS - Buildings excl Dwellings,Work in Progress,TILBURY DOUGLAS CONSTRUCTION LTD,23030085,60167.11
Department of Health,Leicestershire Partnership NHS Trust,13/03/23,Nurse - Band 6 -Agency,AMH - Central Access Point,HCL NURSING,HNSI0001280,2397.21
Department of Health,Leicestershire Partnership NHS Trust,13/03/23,Nurse - Band 7 - Agency,Adult County South Leicestershire CMHT,HCL NURSING,HNSI0001280,1365.26
Department of Health,Leicestershire Partnership NHS Trust,13/03/23,NURSE - BAND 2 - AGENCY,Agnes Unit,HCL NURSING,HNSI0001280,24212.22
Department of Health,Leicestershire Partnership NHS Trust,13/03/23,NURSE - BAND 5 - AGENCY,Agnes Unit,HCL NURSING,HNSI0001280,23408.95
Department of Health,Leicestershire Partnership NHS Trust,13/03/23,NURSE - BAND 2 - AGENCY,Ashby Ward (Bradgate Unit),HCL NURSING,HNSI0001280,7319.67
Department of Health,Leicestershire Partnership NHS Trust,13/03/23,NURSE - BAND 5 - AGENCY,Ashby Ward (Bradgate Unit),HCL NURSING,HNSI0001280,9782.33
Department of Health,Leicestershire Partnership NHS Trust,13/03/23,NURSE - BAND 2 - AGENCY,Aston Ward Bradgate Unit (Prev Welford),HCL NURSING,HNSI0001280,5613.71
Department of Health,Leicestershire Partnership NHS Trust,13/03/23,NURSE - BAND 5 - AGENCY,Aston Ward Bradgate Unit (Prev Welford),HCL NURSING,HNSI0001280,5149.82
Department of Health,Leicestershire Partnership NHS Trust,13/03/23,NURSE - BAND 2 - AGENCY,Beaumont Ward - Bradgate Unit,HCL NURSING,HNSI0001280,2099.21
Department of Health,Leicestershire Partnership NHS Trust,13/03/23,NURSE - BAND 2 - AGENCY,Belvoir Psychiatric Intensive Care Unit,HCL NURSING,HNSI0001280,12354.59
Department of Health,Leicestershire Partnership NHS Trust,13/03/23,NURSE - BAND 5 - AGENCY,Belvoir Psychiatric Intensive Care Unit,HCL NURSING,HNSI0001280,6067.41
Department of Health,Leicestershire Partnership NHS Trust,13/03/23,NURSE - BAND 5 - AGENCY,Bosworth Ward - Bradgate Unit,HCL NURSING,HNSI0001280,6155.22
Department of Health,Leicestershire Partnership NHS Trust,13/03/23,NURSE - BAND 2 - AGENCY,Cedar (Willows),HCL NURSING,HNSI0001280,887.01
Department of Health,Leicestershire Partnership NHS Trust,13/03/23,NURSE - BAND 5 - AGENCY,Cedar (Willows),HCL NURSING,HNSI0001280,899.08
Department of Health,Leicestershire Partnership NHS Trust,13/03/23,Nurse - Band 6 -Agency,City West CMHT MHSOP,HCL NURSING,HNSI0001280,1046.25
Department of Health,Leicestershire Partnership NHS Trust,13/03/23,NURSE - BAND 2 - AGENCY,Coleman Ward,HCL NURSING,HNSI0001280,3477.39
Department of Health,Leicestershire Partnership NHS Trust,13/03/23,NURSE - BAND 5 - AGENCY,Coleman Ward,HCL NURSING,HNSI0001280,5892.80
Department of Health,Leicestershire Partnership NHS Trust,13/03/23,Nurse - Band 6 -Agency,Crisis Resolution,HCL NURSING,HNSI0001280,2981.71
Department of Health,Leicestershire Partnership NHS Trust,13/03/23,NURSE - BAND 2 - AGENCY,Griffin Ward (HPC),HCL NURSING,HNSI0001280,5324.12
Department of Health,Leicestershire Partnership NHS Trust,13/03/23,NURSE - BAND 5 - AGENCY,Griffin Ward (HPC),HCL NURSING,HNSI0001280,3484.07
Department of Health,Leicestershire Partnership NHS Trust,13/03/23,NURSE - BAND 2 - AGENCY,Gwendolen Ward,HCL NURSING,HNSI0001280,2431.93
Department of Health,Leicestershire Partnership NHS Trust,13/03/23,NURSE - BAND 5 - AGENCY,Gwendolen Ward,HCL NURSING,HNSI0001280,7525.10
Department of Health,Leicestershire Partnership NHS Trust,13/03/23,NURSE - BAND 2 - AGENCY,Heather Ward,HCL NURSING,HNSI0001280,2537.53
Department of Health,Leicestershire Partnership NHS Trust,13/03/23,NURSE - BAND 5 - AGENCY,Heather Ward,HCL NURSING,HNSI0001280,4681.11
Department of Health,Leicestershire Partnership NHS Trust,13/03/23,NURSE - BAND 2 - AGENCY,Kirby Ward,HCL NURSING,HNSI0001280,2029.89
Department of Health,Leicestershire Partnership NHS Trust,13/03/23,NURSE - BAND 5 - AGENCY,Kirby Ward,HCL NURSING,HNSI0001280,2641.37
Department of Health,Leicestershire Partnership NHS Trust,13/03/23,NURSE - BAND 2 - AGENCY,Maple Ward,HCL NURSING,HNSI0001280,1829.03
Department of Health,Leicestershire Partnership NHS Trust,13/03/23,NURSE - BAND 5 - AGENCY,Maple Ward,HCL NURSING,HNSI0001280,525.35
Department of Health,Leicestershire Partnership NHS Trust,13/03/23,NURSE - BAND 2 - AGENCY,Mill Lodge,HCL NURSING,HNSI0001280,1533.93
Department of Health,Leicestershire Partnership NHS Trust,13/03/23,NURSE - BAND 5 - AGENCY,Mill Lodge,HCL NURSING,HNSI0001280,2953.94
Department of Health,Leicestershire Partnership NHS Trust,13/03/23,NURSE - BAND 2 - AGENCY,Phoenix Ward (HPC),HCL NURSING,HNSI0001280,1807.56
Department of Health,Leicestershire Partnership NHS Trust,13/03/23,NURSE - BAND 5 - AGENCY,Phoenix Ward (HPC),HCL NURSING,HNSI0001280,449.54
Department of Health,Leicestershire Partnership NHS Trust,13/03/23,NURSE - BAND 2 - AGENCY,Place Of Safety Assessment Unit,HCL NURSING,HNSI0001280,929.68
Department of Health,Leicestershire Partnership NHS Trust,13/03/23,NURSE - BAND 5 - AGENCY,Place Of Safety Assessment Unit,HCL NURSING,HNSI0001280,4271.39
Department of Health,Leicestershire Partnership NHS Trust,13/03/23,NURSE - BAND 2 - AGENCY,Sycamore (Willows),HCL NURSING,HNSI0001280,1608.48
Department of Health,Leicestershire Partnership NHS Trust,13/03/23,NURSE - BAND 5 - AGENCY,Sycamore (Willows),HCL NURSING,HNSI0001280,974.89
Department of Health,Leicestershire Partnership NHS Trust,13/03/23,NURSE - BAND 2 - AGENCY,Thornton Ward - Bradgate Unit,HCL NURSING,HNSI0001280,513.07
Department of Health,Leicestershire Partnership NHS Trust,13/03/23,NURSE - BAND 5 - AGENCY,Thornton Ward - Bradgate Unit,HCL NURSING,HNSI0001280,1413.93
Department of Health,Leicestershire Partnership NHS Trust,13/03/23,Telephone equipment,"Bradgate Unit (including Glenvale day Unit) (P7, LPT)",VIRGIN MEDIA BUSINESS,60050463,50006.62
Department of Health,Leicestershire Partnership NHS Trust,13/03/23,Nurse - Band 6 -Agency,CAMHS HUB / CAP,HCL WORKFORCE SOLUTIONS,HWSI0001599,6316.16
Department of Health,Leicestershire Partnership NHS Trust,13/03/23,Nurse - Band 6 -Agency,CAMHS Waiting List Monies,HCL WORKFORCE SOLUTIONS,HWSI0001599,15521.00
Department of Health,Leicestershire Partnership NHS Trust,13/03/23,Nurse - Band 6 -Agency,Crisis Response and Home Treatment,HCL WORKFORCE SOLUTIONS,HWSI0001599,1934.86
Department of Health,Leicestershire Partnership NHS Trust,13/03/23,NURSE - BAND 2 - AGENCY,CAMHS Inpatient Service,HCL NURSING,HNSI0001282,10773.51
Department of Health,Leicestershire Partnership NHS Trust,13/03/23,NURSE - BAND 5 - AGENCY,CAMHS Inpatient Service,HCL NURSING,HNSI0001282,6242.92
Department of Health,Leicestershire Partnership NHS Trust,13/03/23,NURSE - BAND 2 - AGENCY,CAMHS Learning Disabilities and Outreach Team,HCL NURSING,HNSI0001282,3126.92
Department of Health,Leicestershire Partnership NHS Trust,13/03/23,Nurse - Band 6 -Agency,CAMHS Waiting List Monies,HCL NURSING,HNSI0001282,2160.15
Department of Health,Leicestershire Partnership NHS Trust,13/03/23,NURSE - BAND 2 - AGENCY,Welford Ward (Prev Langley),HCL NURSING,HNSI0001282,3424.67
Department of Health,Leicestershire Partnership NHS Trust,13/03/23,NURSE - BAND 5 - AGENCY,Welford Ward (Prev Langley),HCL NURSING,HNSI0001282,1850.10
Department of Health,Leicestershire Partnership NHS Trust,14/03/23,Payroll Deductions -Salary Sacrifice Cars Scheme,Balance Sheet Collection,TUSKER,68727,45615.00
Department of Health,Leicestershire Partnership NHS Trust,14/03/23,Rent,"St Peters Health Center (Part 1st and 2nd floors) (P66, LPT)",LEICESTER LIFT CO,LEP1-SI1116,30082.84
Department of Health,Leicestershire Partnership NHS Trust,14/03/23,Crs_NHS_LT1y -Resus Inventory Supplied.,Balance Sheet Collection,SUPPLY CHAIN CO LTD,1123284550,33269.65
Department of Health,Leicestershire Partnership NHS Trust,15/03/23,Computer Hardware,HIS External Recharge,DELL COMPUTERS,7402895616,39882.94
Department of Health,Leicestershire Partnership NHS Trust,15/03/23,Medical Equipment Repairs / Maintenance,Community Health Services Management,SPIRIT DIGITAL LTD,SIN230205SDI00051,43740.00
Department of Health,Leicestershire Partnership NHS Trust,15/03/23,WIP Project Not in BS - Buildings excl Dwellings,Work in Progress,TILBURY DOUGLAS CONSTRUCTION LTD,23030162,68743.09
Department of Health,Leicestershire Partnership NHS Trust,15/03/23,WIP Project Not in BS - Buildings excl Dwellings,Work in Progress,TILBURY DOUGLAS CONSTRUCTION LTD,23030169,29761.85
Department of Health,Leicestershire Partnership NHS Trust,15/03/23,WIP Project Not in BS - Buildings excl Dwellings,Work in Progress,TILBURY DOUGLAS CONSTRUCTION LTD,23030172,47762.09
Department of Health,Leicestershire Partnership NHS Trust,15/03/23,WIP Project Not in BS - Buildings excl Dwellings,Work in Progress,TILBURY DOUGLAS CONSTRUCTION LTD,23030173,32956.33
Department of Health,Leicestershire Partnership NHS Trust,15/03/23,WIP Project Not in BS - Buildings excl Dwellings,Work in Progress,TILBURY DOUGLAS CONSTRUCTION LTD,23030178,29799.67
Department of Health,Leicestershire Partnership NHS Trust,15/03/23,WIP Project Not in BS - Buildings excl Dwellings,Work in Progress,TILBURY DOUGLAS CONSTRUCTION LTD,23030183,28884.06
Department of Health,Leicestershire Partnership NHS Trust,15/03/23,WIP Project Not in BS - Buildings excl Dwellings,Work in Progress,TILBURY DOUGLAS CONSTRUCTION LTD,23030188,148754.09
Department of Health,Leicestershire Partnership NHS Trust,15/03/23,WIP Project Not in BS - Buildings excl Dwellings,Work in Progress,TILBURY DOUGLAS CONSTRUCTION LTD,23030192,36619.98
Department of Health,Leicestershire Partnership NHS Trust,15/03/23,WIP Project Not in BS - Buildings excl Dwellings,Work in Progress,TILBURY DOUGLAS CONSTRUCTION LTD,23030194,31847.68
Department of Health,Leicestershire Partnership NHS Trust,15/03/23,WIP Project Not in BS - Buildings excl Dwellings,Work in Progress,TILBURY DOUGLAS CONSTRUCTION LTD,23030200,67344.17
Department of Health,Leicestershire Partnership NHS Trust,15/03/23,WIP Project Not in BS - Buildings excl Dwellings,Work in Progress,TILBURY DOUGLAS CONSTRUCTION LTD,23030201,58691.39
Department of Health,Leicestershire Partnership NHS Trust,15/03/23,WIP Project Not in BS - Buildings excl Dwellings,Work in Progress,TILBURY DOUGLAS CONSTRUCTION LTD,23030224,218824.26
Department of Health,Leicestershire Partnership NHS Trust,15/03/23,WIP Project Not in BS - Buildings excl Dwellings,Work in Progress,TILBURY DOUGLAS CONSTRUCTION LTD,23030225,147285.58
Department of Health,Leicestershire Partnership NHS Trust,16/03/23,Mobile Telephone Rental / Calls,Specific Unit Budget Reserves,VODAFONE CORPORATE LTD,MARCHINVOICES23,69177.97
Department of Health,Leicestershire Partnership NHS Trust,16/03/23,Legal Fees,Chief Executives Office,BROWNE JACOBSON LLP,IN-000140987,26620.80
Department of Health,Leicestershire Partnership NHS Trust,16/03/23,Rent,County Hall,LEIC COUNTY COUNCIL,6294402,34488.50
Department of Health,Leicestershire Partnership NHS Trust,17/03/23,NURSE - BAND 2 - AGENCY,CAMHS Inpatient Service,HCL NURSING,HNSI0001286,14467.72
Department of Health,Leicestershire Partnership NHS Trust,17/03/23,NURSE - BAND 5 - AGENCY,CAMHS Inpatient Service,HCL NURSING,HNSI0001286,5236.49
Department of Health,Leicestershire Partnership NHS Trust,17/03/23,NURSE - BAND 2 - AGENCY,CAMHS Learning Disabilities and Outreach Team,HCL NURSING,HNSI0001286,2051.80
Department of Health,Leicestershire Partnership NHS Trust,17/03/23,Nurse - Band 6 -Agency,CAMHS Waiting List Monies,HCL NURSING,HNSI0001286,7738.74
Department of Health,Leicestershire Partnership NHS Trust,17/03/23,NURSE - BAND 2 - AGENCY,Welford Ward (Prev Langley),HCL NURSING,HNSI0001286,2583.36
Department of Health,Leicestershire Partnership NHS Trust,17/03/23,NURSE - BAND 5 - AGENCY,Welford Ward (Prev Langley),HCL NURSING,HNSI0001286,2045.33
Department of Health,Leicestershire Partnership NHS Trust,17/03/23,Nurse - Band 6 -Agency,AMH - Central Access Point,HCL NURSING,HNSI0001284,3864.60
Department of Health,Leicestershire Partnership NHS Trust,17/03/23,Nurse - Band 7 - Agency,Adult County South Leicestershire CMHT,HCL NURSING,HNSI0001284,2457.47
Department of Health,Leicestershire Partnership NHS Trust,17/03/23,NURSE - BAND 2 - AGENCY,Agnes Unit,HCL NURSING,HNSI0001284,25887.42
Department of Health,Leicestershire Partnership NHS Trust,17/03/23,NURSE - BAND 5 - AGENCY,Agnes Unit,HCL NURSING,HNSI0001284,28110.94
Department of Health,Leicestershire Partnership NHS Trust,17/03/23,NURSE - BAND 2 - AGENCY,Ashby Ward (Bradgate Unit),HCL NURSING,HNSI0001284,7644.58
Department of Health,Leicestershire Partnership NHS Trust,17/03/23,NURSE - BAND 5 - AGENCY,Ashby Ward (Bradgate Unit),HCL NURSING,HNSI0001284,8878.11
Department of Health,Leicestershire Partnership NHS Trust,17/03/23,NURSE - BAND 2 - AGENCY,Aston Ward Bradgate Unit (Prev Welford),HCL NURSING,HNSI0001284,4308.42
Department of Health,Leicestershire Partnership NHS Trust,17/03/23,NURSE - BAND 5 - AGENCY,Aston Ward Bradgate Unit (Prev Welford),HCL NURSING,HNSI0001284,5063.08
Department of Health,Leicestershire Partnership NHS Trust,17/03/23,NURSE - BAND 2 - AGENCY,Beaumont Ward - Bradgate Unit,HCL NURSING,HNSI0001284,4227.89
Department of Health,Leicestershire Partnership NHS Trust,17/03/23,NURSE - BAND 5 - AGENCY,Beaumont Ward - Bradgate Unit,HCL NURSING,HNSI0001284,9534.33
Department of Health,Leicestershire Partnership NHS Trust,17/03/23,NURSE - BAND 2 - AGENCY,Belvoir Psychiatric Intensive Care Unit,HCL NURSING,HNSI0001284,4281.16
Department of Health,Leicestershire Partnership NHS Trust,17/03/23,NURSE - BAND 5 - AGENCY,Belvoir Psychiatric Intensive Care Unit,HCL NURSING,HNSI0001284,3685.25
Department of Health,Leicestershire Partnership NHS Trust,17/03/23,NURSE - BAND 2 - AGENCY,Bosworth Ward - Bradgate Unit,HCL NURSING,HNSI0001284,867.40
Department of Health,Leicestershire Partnership NHS Trust,17/03/23,NURSE - BAND 5 - AGENCY,Bosworth Ward - Bradgate Unit,HCL NURSING,HNSI0001284,3532.51
Department of Health,Leicestershire Partnership NHS Trust,17/03/23,Nurse - Band 6 -Agency,Bosworth Ward - Bradgate Unit,HCL NURSING,HNSI0001284,1365.31
Department of Health,Leicestershire Partnership NHS Trust,17/03/23,NURSE - BAND 2 - AGENCY,Cedar (Willows),HCL NURSING,HNSI0001284,665.91
Department of Health,Leicestershire Partnership NHS Trust,17/03/23,NURSE - BAND 5 - AGENCY,Cedar (Willows),HCL NURSING,HNSI0001284,1841.00
Department of Health,Leicestershire Partnership NHS Trust,17/03/23,Nurse - Band 6 -Agency,City West CMHT MHSOP,HCL NURSING,HNSI0001284,855.97
Department of Health,Leicestershire Partnership NHS Trust,17/03/23,NURSE - BAND 2 - AGENCY,Coleman Ward,HCL NURSING,HNSI0001284,2359.33
Department of Health,Leicestershire Partnership NHS Trust,17/03/23,NURSE - BAND 5 - AGENCY,Coleman Ward,HCL NURSING,HNSI0001284,4342.59
Department of Health,Leicestershire Partnership NHS Trust,17/03/23,NURSE - BAND 2 - AGENCY,Griffin Ward (HPC),HCL NURSING,HNSI0001284,3557.30
Department of Health,Leicestershire Partnership NHS Trust,17/03/23,NURSE - BAND 5 - AGENCY,Griffin Ward (HPC),HCL NURSING,HNSI0001284,5291.88
Department of Health,Leicestershire Partnership NHS Trust,17/03/23,NURSE - BAND 2 - AGENCY,Gwendolen Ward,HCL NURSING,HNSI0001284,2742.77
Department of Health,Leicestershire Partnership NHS Trust,17/03/23,NURSE - BAND 5 - AGENCY,Gwendolen Ward,HCL NURSING,HNSI0001284,2323.93
Department of Health,Leicestershire Partnership NHS Trust,17/03/23,NURSE - BAND 2 - AGENCY,Heather Ward,HCL NURSING,HNSI0001284,1427.07
Department of Health,Leicestershire Partnership NHS Trust,17/03/23,NURSE - BAND 5 - AGENCY,Heather Ward,HCL NURSING,HNSI0001284,3076.32
Department of Health,Leicestershire Partnership NHS Trust,17/03/23,NURSE - BAND 2 - AGENCY,Kirby Ward,HCL NURSING,HNSI0001284,1847.67
Department of Health,Leicestershire Partnership NHS Trust,17/03/23,NURSE - BAND 5 - AGENCY,Kirby Ward,HCL NURSING,HNSI0001284,2381.52
Department of Health,Leicestershire Partnership NHS Trust,17/03/23,NURSE - BAND 2 - AGENCY,Maple Ward,HCL NURSING,HNSI0001284,1121.85
Department of Health,Leicestershire Partnership NHS Trust,17/03/23,NURSE - BAND 5 - AGENCY,Maple Ward,HCL NURSING,HNSI0001284,1566.85
Department of Health,Leicestershire Partnership NHS Trust,17/03/23,NURSE - BAND 2 - AGENCY,Mill Lodge,HCL NURSING,HNSI0001284,1948.16
Department of Health,Leicestershire Partnership NHS Trust,17/03/23,NURSE - BAND 5 - AGENCY,Mill Lodge,HCL NURSING,HNSI0001284,1601.55
Department of Health,Leicestershire Partnership NHS Trust,17/03/23,NURSE - BAND 2 - AGENCY,Phoenix Ward (HPC),HCL NURSING,HNSI0001284,1901.30
Department of Health,Leicestershire Partnership NHS Trust,17/03/23,NURSE - BAND 5 - AGENCY,Phoenix Ward (HPC),HCL NURSING,HNSI0001284,2443.63
Department of Health,Leicestershire Partnership NHS Trust,17/03/23,NURSE - BAND 2 - AGENCY,Place Of Safety Assessment Unit,HCL NURSING,HNSI0001284,2086.74
Department of Health,Leicestershire Partnership NHS Trust,17/03/23,NURSE - BAND 5 - AGENCY,Place Of Safety Assessment Unit,HCL NURSING,HNSI0001284,3655.44
Department of Health,Leicestershire Partnership NHS Trust,17/03/23,NURSE - BAND 5 - AGENCY,Stewart House,HCL NURSING,HNSI0001284,899.08
Department of Health,Leicestershire Partnership NHS Trust,17/03/23,NURSE - BAND 2 - AGENCY,Sycamore (Willows),HCL NURSING,HNSI0001284,1759.21
Department of Health,Leicestershire Partnership NHS Trust,17/03/23,NURSE - BAND 2 - AGENCY,Thornton Ward - Bradgate Unit,HCL NURSING,HNSI0001284,917.94
Department of Health,Leicestershire Partnership NHS Trust,17/03/23,NURSE - BAND 5 - AGENCY,Thornton Ward - Bradgate Unit,HCL NURSING,HNSI0001284,3606.14
Department of Health,Leicestershire Partnership NHS Trust,17/03/23,Healthcare Services / Recharges from Non-NHS Bodies,Adult Eating Disorder Collaborative,PRIORY GROUP,301FEB23LECAEDA,94121.96
Department of Health,Leicestershire Partnership NHS Trust,20/03/23,Cytogenetic Testing,Community Paediatrics,UHL NHS TRUST (RWE),L0268784,43000.00
Department of Health,Leicestershire Partnership NHS Trust,20/03/23,Services / Recharges from NHS Trusts,Inter Unit I & E Distribution,UHL NHS TRUST (RWE),L0268786,34531.99
Department of Health,Leicestershire Partnership NHS Trust,20/03/23,Services / Recharges from NHS Trusts,Inter Unit I & E Distribution,UHL NHS TRUST (RWE),L0268787,31700.00
Department of Health,Leicestershire Partnership NHS Trust,20/03/23,Cytogenetic Testing,Community Paediatrics,UHL NHS TRUST (RWE),L0268783,42179.45
Department of Health,Leicestershire Partnership NHS Trust,20/03/23,Healthcare Services / Recharges from Non-NHS Bodies,Medical Trainees,UNIVERSITY OF LEICESTER,2230123616,133746.54
Department of Health,Leicestershire Partnership NHS Trust,20/03/23,Healthcare Services / Recharges from Non-NHS Bodies,Medical Trainees,UNIVERSITY OF LEICESTER,2230124567,134424.74
Department of Health,Leicestershire Partnership NHS Trust,20/03/23,Photocopying,Estates & Facilities Central,LEXMARK INTERNATIONAL LTD,900650305246,36363.76
Department of Health,Leicestershire Partnership NHS Trust,20/03/23,Services / Recharges from NHS Trusts,Inter Unit I & E Distribution,UHL NHS TRUST (RWE),C0027330,-354064.93
Department of Health,Leicestershire Partnership NHS Trust,20/03/23,Crs_NHS_LT1y -Resus Inventory Supplied.,Balance Sheet Collection,SUPPLY CHAIN CO LTD,1123290671,31362.60
Department of Health,Leicestershire Partnership NHS Trust,20/03/23,Gas,"Beaumont Leys Health Centre (P94, LPT)",TOTAL GAS & POWER LTD,295366054/23,1505.20
Department of Health,Leicestershire Partnership NHS Trust,20/03/23,Gas,"Bennion Centre (including Forest Grange Day Unit) (P8, LPT)",TOTAL GAS & POWER LTD,295366054/23,17705.48
Department of Health,Leicestershire Partnership NHS Trust,20/03/23,Gas,"Bradgate Unit (including Glenvale day Unit) (P7, LPT)",TOTAL GAS & POWER LTD,295366054/23,29773.39
Department of Health,Leicestershire Partnership NHS Trust,20/03/23,Gas,Bridge Park Plaza - First Floor (LPT),TOTAL GAS & POWER LTD,295366054/23,3425.46
Department of Health,Leicestershire Partnership NHS Trust,20/03/23,Gas,"Bridge Park Road - Units 2 and 3 (P148, LPT)",TOTAL GAS & POWER LTD,295366054/23,444.86
Department of Health,Leicestershire Partnership NHS Trust,20/03/23,Gas,"Coalville Community Hospital (P138, LPT)",TOTAL GAS & POWER LTD,295366054/23,20092.52
Department of Health,Leicestershire Partnership NHS Trust,20/03/23,Gas,"Coalville Health Centre (P121, LPT)",TOTAL GAS & POWER LTD,295366054/23,2671.33
Department of Health,Leicestershire Partnership NHS Trust,20/03/23,Gas,"Farm Lodge (P34, LPT)",TOTAL GAS & POWER LTD,295366054/23,430.75
Department of Health,Leicestershire Partnership NHS Trust,20/03/23,Gas,"Frith Cottages 3 & 4 (P36, LPT)",TOTAL GAS & POWER LTD,295366054/23,407.50
Department of Health,Leicestershire Partnership NHS Trust,20/03/23,Gas,HIS,TOTAL GAS & POWER LTD,295366054/23,426.88
Department of Health,Leicestershire Partnership NHS Trust,20/03/23,Gas,"Hawthorne Centre - Coalville (P14, LPT)",TOTAL GAS & POWER LTD,295366054/23,1104.97
Department of Health,Leicestershire Partnership NHS Trust,20/03/23,Gas,"Hynca Lodge (P33, LPT)",TOTAL GAS & POWER LTD,295366054/23,287.55
Department of Health,Leicestershire Partnership NHS Trust,20/03/23,Gas,"LGH - Gwendolen House (P4, LPT)",TOTAL GAS & POWER LTD,295366054/23,3856.44
Department of Health,Leicestershire Partnership NHS Trust,20/03/23,Gas,"Loughborough Hospital (P136, LPT)",TOTAL GAS & POWER LTD,295366054/23,35757.23
Department of Health,Leicestershire Partnership NHS Trust,20/03/23,Gas,Mawson House (LPT),TOTAL GAS & POWER LTD,295366054/23,1540.34
Department of Health,Leicestershire Partnership NHS Trust,20/03/23,Gas,"Mett Centre (P49, LPT)",TOTAL GAS & POWER LTD,295366054/23,663.17
Department of Health,Leicestershire Partnership NHS Trust,20/03/23,Gas,"Narborough Health Centre (P117, LPT)",TOTAL GAS & POWER LTD,295366054/23,1228.91
Department of Health,Leicestershire Partnership NHS Trust,20/03/23,Gas,"Neville Centre - LGH (was DSC) (P147, LPT)",TOTAL GAS & POWER LTD,295366054/23,2387.10
Department of Health,Leicestershire Partnership NHS Trust,20/03/23,Gas,"OSL House (P54, LPT)",TOTAL GAS & POWER LTD,295366054/23,1618.02
Department of Health,Leicestershire Partnership NHS Trust,20/03/23,Gas,"Orchard Resource Centre (P15, LPT)",TOTAL GAS & POWER LTD,295366054/23,3053.75
Department of Health,Leicestershire Partnership NHS Trust,20/03/23,Gas,"Rutland Memorial Hospital (P134, LPT)",TOTAL GAS & POWER LTD,295366054/23,1472.05
Department of Health,Leicestershire Partnership NHS Trust,20/03/23,Gas,"Springfield Road Health Centre (P92, LPT)",TOTAL GAS & POWER LTD,295366054/23,1328.12
Department of Health,Leicestershire Partnership NHS Trust,20/03/23,Gas,"Stewart House (P61, LPT)",TOTAL GAS & POWER LTD,295366054/23,6716.04
Department of Health,Leicestershire Partnership NHS Trust,20/03/23,Gas,"Swithland House - London Road 352 (P44, LPT)",TOTAL GAS & POWER LTD,295366054/23,2266.14
Department of Health,Leicestershire Partnership NHS Trust,20/03/23,Gas,"The Agnes Unit (AKA Assessment and Treatment Centre) (P85, LPT)",TOTAL GAS & POWER LTD,295366054/23,8558.48
Department of Health,Leicestershire Partnership NHS Trust,20/03/23,Gas,The Beacon,TOTAL GAS & POWER LTD,295366054/23,2677.72
Department of Health,Leicestershire Partnership NHS Trust,20/03/23,Gas,"The Cedars (P19, LPT)",TOTAL GAS & POWER LTD,295366054/23,776.72
Department of Health,Leicestershire Partnership NHS Trust,20/03/23,Gas,"The Grange 1 (P4, LPT)",TOTAL GAS & POWER LTD,295366054/23,668.09
Department of Health,Leicestershire Partnership NHS Trust,20/03/23,Gas,"The Grange 2 (P41, LPT)",TOTAL GAS & POWER LTD,295366054/23,500.66
Department of Health,Leicestershire Partnership NHS Trust,20/03/23,Gas,"The Willows - Cordelia Close (P22, LPT)",TOTAL GAS & POWER LTD,295366054/23,7447.90
Department of Health,Leicestershire Partnership NHS Trust,20/03/23,Gas,"Valentine Centre (P3, LPT)",TOTAL GAS & POWER LTD,295366054/23,3554.09
Department of Health,Leicestershire Partnership NHS Trust,20/03/23,Gas,"Westcotes Group -Westcotes House (P78, LPT)",TOTAL GAS & POWER LTD,295366054/23,3179.28
Department of Health,Leicestershire Partnership NHS Trust,20/03/23,Gas,"Winstanley Drive Health Centre (P8, LPT)",TOTAL GAS & POWER LTD,295366054/23,1176.78
Department of Health,Leicestershire Partnership NHS Trust,20/03/23,NURSE - BAND 2 - AGENCY,Beechwood Ward,HCL NURSING,HNSI0001285,7979.24
Department of Health,Leicestershire Partnership NHS Trust,20/03/23,NURSE - BAND 5 - AGENCY,Beechwood Ward,HCL NURSING,HNSI0001285,7089.04
Department of Health,Leicestershire Partnership NHS Trust,20/03/23,NURSE - BAND 2 - AGENCY,CHS Surge Ward,HCL NURSING,HNSI0001285,8730.09
Department of Health,Leicestershire Partnership NHS Trust,20/03/23,NURSE - BAND 5 - AGENCY,CHS Surge Ward,HCL NURSING,HNSI0001285,8057.46
Department of Health,Leicestershire Partnership NHS Trust,20/03/23,NURSE - BAND 5 - AGENCY,City Planned Care - East,HCL NURSING,HNSI0001285,12644.45
Department of Health,Leicestershire Partnership NHS Trust,20/03/23,NURSE - BAND 5 - AGENCY,City Planned Care - West,HCL NURSING,HNSI0001285,9110.72
Department of Health,Leicestershire Partnership NHS Trust,20/03/23,NURSE - BAND 2 - AGENCY,Clarendon Ward,HCL NURSING,HNSI0001285,10557.33
Department of Health,Leicestershire Partnership NHS Trust,20/03/23,NURSE - BAND 5 - AGENCY,Clarendon Ward,HCL NURSING,HNSI0001285,1933.34
Department of Health,Leicestershire Partnership NHS Trust,20/03/23,NURSE - BAND 2 - AGENCY,Coalville Snibston Ward,HCL NURSING,HNSI0001285,4101.29
Department of Health,Leicestershire Partnership NHS Trust,20/03/23,NURSE - BAND 5 - AGENCY,Coalville Snibston Ward,HCL NURSING,HNSI0001285,2084.07
Department of Health,Leicestershire Partnership NHS Trust,20/03/23,NURSE - BAND 2 - AGENCY,Coalville Ward 2,HCL NURSING,HNSI0001285,4010.28
Department of Health,Leicestershire Partnership NHS Trust,20/03/23,NURSE - BAND 5 - AGENCY,Coalville Ward 2,HCL NURSING,HNSI0001285,900.90
Department of Health,Leicestershire Partnership NHS Trust,20/03/23,NURSE - BAND 2 - AGENCY,Dalgliesh Ward,HCL NURSING,HNSI0001285,4423.73
Department of Health,Leicestershire Partnership NHS Trust,20/03/23,NURSE - BAND 5 - AGENCY,Dalgliesh Ward,HCL NURSING,HNSI0001285,1472.75
Department of Health,Leicestershire Partnership NHS Trust,20/03/23,NURSE - BAND 5 - AGENCY,"East Planned Care - Oadby,Wigston & Harborough",HCL NURSING,HNSI0001285,3779.17
Department of Health,Leicestershire Partnership NHS Trust,20/03/23,NURSE - BAND 2 - AGENCY,H&B Comm Hosp East Ward,HCL NURSING,HNSI0001285,5300.22
Department of Health,Leicestershire Partnership NHS Trust,20/03/23,NURSE - BAND 5 - AGENCY,H&B Comm Hosp East Ward,HCL NURSING,HNSI0001285,9822.66
Department of Health,Leicestershire Partnership NHS Trust,20/03/23,NURSE - BAND 2 - AGENCY,H&B Comm Hosp North Ward,HCL NURSING,HNSI0001285,3055.82
Department of Health,Leicestershire Partnership NHS Trust,20/03/23,NURSE - BAND 5 - AGENCY,H&B Comm Hosp North Ward,HCL NURSING,HNSI0001285,6774.66
Department of Health,Leicestershire Partnership NHS Trust,20/03/23,NURSE - BAND 2 - AGENCY,Lough Swithland Ward,HCL NURSING,HNSI0001285,3239.98
Department of Health,Leicestershire Partnership NHS Trust,20/03/23,NURSE - BAND 5 - AGENCY,Lough Swithland Ward,HCL NURSING,HNSI0001285,1166.56
Department of Health,Leicestershire Partnership NHS Trust,20/03/23,NURSE - BAND 2 - AGENCY,Rutland Ward Nursing,HCL NURSING,HNSI0001285,2089.79
Department of Health,Leicestershire Partnership NHS Trust,20/03/23,NURSE - BAND 2 - AGENCY,St Lukes Stroke Ward,HCL NURSING,HNSI0001285,4638.89
Department of Health,Leicestershire Partnership NHS Trust,20/03/23,NURSE - BAND 5 - AGENCY,St Lukes Stroke Ward,HCL NURSING,HNSI0001285,3170.12
Department of Health,Leicestershire Partnership NHS Trust,20/03/23,NURSE - BAND 2 - AGENCY,St Lukes Ward 3,HCL NURSING,HNSI0001285,2862.64
Department of Health,Leicestershire Partnership NHS Trust,21/03/23,Services / Recharges from NHS Trusts,Inter Unit I & E Distribution,UHL NHS TRUST (RWE),L0268947,77935.00
Department of Health,Leicestershire Partnership NHS Trust,21/03/23,SPECIALIST REGISTRAR,Medical Trainees,UHL NHS TRUST (RWE),L0268957,30741.86
Department of Health,Leicestershire Partnership NHS Trust,21/03/23,Occupational Health,HR Operations,UHL NHS TRUST (RWE),L0268960,85576.60
Department of Health,Leicestershire Partnership NHS Trust,21/03/23,Payroll Deductions -Salary Sacrifice Cars Scheme,Balance Sheet Collection,TUSKER,72704,39941.86
Department of Health,Leicestershire Partnership NHS Trust,21/03/23,WIP Project Not in BS - Buildings excl Dwellings,Work in Progress,TILBURY DOUGLAS CONSTRUCTION LTD,23030197,43215.37
Department of Health,Leicestershire Partnership NHS Trust,21/03/23,HR / Payroll Services,Chief Executives Office,SEYMOUR JOHN PUB SERV LTD,INV-P200698,45540.00
Department of Health,Leicestershire Partnership NHS Trust,21/03/23,Admin & Clerical - Band 5,Chief Executives Office,NORTHAMPTONSHIRE HC NHS FT (RP1),5153513,1287.60
Department of Health,Leicestershire Partnership NHS Trust,21/03/23,Admin & Clerical - Band 6,Chief Executives Office,NORTHAMPTONSHIRE HC NHS FT (RP1),5153513,1399.73
Department of Health,Leicestershire Partnership NHS Trust,21/03/23,CHIEF EXECUTIVE'S REMUNERATION,Chief Executives Office,NORTHAMPTONSHIRE HC NHS FT (RP1),5153513,10848.38
Department of Health,Leicestershire Partnership NHS Trust,21/03/23,DIRECTOR,Chief Executives Office,NORTHAMPTONSHIRE HC NHS FT (RP1),5153513,21230.10
Department of Health,Leicestershire Partnership NHS Trust,21/03/23,Senior Manager - Band 8A,Chief Nurse,NORTHAMPTONSHIRE HC NHS FT (RP1),5153513,4938.40
Department of Health,Leicestershire Partnership NHS Trust,21/03/23,DIRECTOR,Project Management Office,NORTHAMPTONSHIRE HC NHS FT (RP1),5153513,10277.28
Department of Health,Leicestershire Partnership NHS Trust,22/03/23,Prep_ LT1y -Prepayments Lease Cars,Balance Sheet Collection,LEASEPLAN,511315353,21955.62
Department of Health,Leicestershire Partnership NHS Trust,22/03/23,Trade_Drs_LT1y -Lease Cars Invoicing Contrl Ac.,Balance Sheet Collection,LEASEPLAN,511315353,332.88
Department of Health,Leicestershire Partnership NHS Trust,22/03/23,VAT_Drs _ LT1y -VAT Contracted Out Services Input Tax,Balance Sheet Collection,LEASEPLAN,511315353,442.61
Department of Health,Leicestershire Partnership NHS Trust,22/03/23,Leased / Hired Vehicles,COVID 19,LEASEPLAN,511315353,472.36
Department of Health,Leicestershire Partnership NHS Trust,22/03/23,Leased / Hired Vehicles,City Planned Care - East - Therapy,LEASEPLAN,511315353,25.00
Department of Health,Leicestershire Partnership NHS Trust,22/03/23,Leased / Hired Vehicles,City Planned Care - West,LEASEPLAN,511315353,601.16
Department of Health,Leicestershire Partnership NHS Trust,22/03/23,Leased / Hired Vehicles,HIS Management Team,LEASEPLAN,511315353,648.96
Department of Health,Leicestershire Partnership NHS Trust,22/03/23,Leased / Hired Vehicles,Integrated Specialist Palliative Care Team,LEASEPLAN,511315353,15.00
Department of Health,Leicestershire Partnership NHS Trust,22/03/23,Leased / Hired Vehicles,Outreach,LEASEPLAN,511315353,638.96
Department of Health,Leicestershire Partnership NHS Trust,22/03/23,Leased / Hired Vehicles,PIER Team - Early Intervention Services,LEASEPLAN,511315353,25.00
Department of Health,Leicestershire Partnership NHS Trust,22/03/23,Leased / Hired Vehicles,School Age Immunisation and Vaccinations,LEASEPLAN,511315353,920.54
Department of Health,Leicestershire Partnership NHS Trust,22/03/23,Leased / Hired Vehicles,West Leicestershire CMHT MHSOP,LEASEPLAN,511315353,15.00
Department of Health,Leicestershire Partnership NHS Trust,22/03/23,Leased / Hired Vehicles,West Planned Care  - Hinckley Hub,LEASEPLAN,511315353,675.84
Department of Health,Leicestershire Partnership NHS Trust,22/03/23,WIP Project Not in BS - Buildings excl Dwellings,Work in Progress,TILBURY DOUGLAS CONSTRUCTION LTD,23030298,628025.88
Department of Health,Leicestershire Partnership NHS Trust,22/03/23,Computer Hardware,Digital Innovation Hub,BADENOCH & CLARK LTD,A40076,38072.88
Department of Health,Leicestershire Partnership NHS Trust,22/03/23,External Consultancy Fees,HIS,CHANNEL 3 CONSULTING,21174,28706.63
Department of Health,Leicestershire Partnership NHS Trust,23/03/23,Drugs,Adult City Drugs,POLAR SPEED THERMOLOGISTICS,0001099438,10488.08
Department of Health,Leicestershire Partnership NHS Trust,23/03/23,Drugs,Adult County Drugs,POLAR SPEED THERMOLOGISTICS,0001099438,15732.12
Department of Health,Leicestershire Partnership NHS Trust,23/03/23,Telephone equipment,"LGH - Gwendolen House (P4, LPT)",VIRGIN MEDIA BUSINESS,60050510,46600.54
Department of Health,Leicestershire Partnership NHS Trust,23/03/23,Prep_ LT1y -Prepayments Lease Cars,Balance Sheet Collection,LEASEPLAN,511183213,15602.36
Department of Health,Leicestershire Partnership NHS Trust,23/03/23,Trade_Drs_LT1y -Lease Cars Invoicing Contrl Ac.,Balance Sheet Collection,LEASEPLAN,511183213,1175.94
Department of Health,Leicestershire Partnership NHS Trust,23/03/23,VAT_Drs _ LT1y -VAT Contracted Out Services Input Tax,Balance Sheet Collection,LEASEPLAN,511183213,1153.41
Department of Health,Leicestershire Partnership NHS Trust,23/03/23,Leased / Hired Vehicles,COVID 19,LEASEPLAN,511183213,472.36
Department of Health,Leicestershire Partnership NHS Trust,23/03/23,Leased / Hired Vehicles,Children's Speech Therapy,LEASEPLAN,511183213,10.00
Department of Health,Leicestershire Partnership NHS Trust,23/03/23,Leased / Hired Vehicles,City Planned Care - East,LEASEPLAN,511183213,48.75
Department of Health,Leicestershire Partnership NHS Trust,23/03/23,Leased / Hired Vehicles,City Planned Care - East - Therapy,LEASEPLAN,511183213,86.66
Department of Health,Leicestershire Partnership NHS Trust,23/03/23,Leased / Hired Vehicles,City Planned Care - West,LEASEPLAN,511183213,1202.32
Department of Health,Leicestershire Partnership NHS Trust,23/03/23,Leased / Hired Vehicles,Community Homeless Service,LEASEPLAN,511183213,35.00
Department of Health,Leicestershire Partnership NHS Trust,23/03/23,Leased / Hired Vehicles,Finance Department,LEASEPLAN,511183213,10.00
Department of Health,Leicestershire Partnership NHS Trust,23/03/23,Leased / Hired Vehicles,Integrated Specialist Palliative Care Team,LEASEPLAN,511183213,98.45
Department of Health,Leicestershire Partnership NHS Trust,23/03/23,Leased / Hired Vehicles,Outreach,LEASEPLAN,511183213,1277.92
Department of Health,Leicestershire Partnership NHS Trust,23/03/23,Leased / Hired Vehicles,PIER Team - Early Intervention Services,LEASEPLAN,511183213,65.00
Department of Health,Leicestershire Partnership NHS Trust,23/03/23,Leased / Hired Vehicles,School Age Immunisation and Vaccinations,LEASEPLAN,511183213,2017.63
Department of Health,Leicestershire Partnership NHS Trust,23/03/23,Leased / Hired Vehicles,Speech & Language Therapy,LEASEPLAN,511183213,235.64
Department of Health,Leicestershire Partnership NHS Trust,23/03/23,Leased / Hired Vehicles,Support Services (Learn Dis),LEASEPLAN,511183213,134.42
Department of Health,Leicestershire Partnership NHS Trust,23/03/23,Leased / Hired Vehicles,West Planned Care  - Charnwood Hub,LEASEPLAN,511183213,10.00
Department of Health,Leicestershire Partnership NHS Trust,23/03/23,Leased / Hired Vehicles,West Planned Care  - Hinckley Hub,LEASEPLAN,511183213,484.44
Department of Health,Leicestershire Partnership NHS Trust,23/03/23,Leased / Hired Vehicles,West Planned Care - NWL Hub,LEASEPLAN,511183213,20.00
Department of Health,Leicestershire Partnership NHS Trust,23/03/23,NURSE - BAND 2 - AGENCY,CAMHS Inpatient Service,HCL NURSING,HNSI0001291,15013.74
Department of Health,Leicestershire Partnership NHS Trust,23/03/23,NURSE - BAND 5 - AGENCY,CAMHS Inpatient Service,HCL NURSING,HNSI0001291,5921.37
Department of Health,Leicestershire Partnership NHS Trust,23/03/23,NURSE - BAND 2 - AGENCY,CAMHS Learning Disabilities and Outreach Team,HCL NURSING,HNSI0001291,2828.01
Department of Health,Leicestershire Partnership NHS Trust,23/03/23,Nurse - Band 6 -Agency,CAMHS Waiting List Monies,HCL NURSING,HNSI0001291,3250.24
Department of Health,Leicestershire Partnership NHS Trust,23/03/23,NURSE - BAND 2 - AGENCY,Welford Ward (Prev Langley),HCL NURSING,HNSI0001291,2485.79
Department of Health,Leicestershire Partnership NHS Trust,23/03/23,NURSE - BAND 5 - AGENCY,Welford Ward (Prev Langley),HCL NURSING,HNSI0001291,4316.37
Department of Health,Leicestershire Partnership NHS Trust,23/03/23,Nurse - Band 6 -Agency,CAMHS HUB / CAP,HCL WORKFORCE SOLUTIONS,HWSI0001629,8342.12
Department of Health,Leicestershire Partnership NHS Trust,23/03/23,Nurse - Band 6 -Agency,CAMHS Waiting List Monies,HCL WORKFORCE SOLUTIONS,HWSI0001629,19802.20
Department of Health,Leicestershire Partnership NHS Trust,23/03/23,Nurse - Band 6 -Agency,Crisis Response and Home Treatment,HCL WORKFORCE SOLUTIONS,HWSI0001629,1103.96
Department of Health,Leicestershire Partnership NHS Trust,23/03/23,NURSE - BAND 5 - AGENCY,AMH - Central Access Point,HCL NURSING,HNSI0001289,388.29
Department of Health,Leicestershire Partnership NHS Trust,23/03/23,Nurse - Band 6 -Agency,AMH - Central Access Point,HCL NURSING,HNSI0001289,3370.68
Department of Health,Leicestershire Partnership NHS Trust,23/03/23,NURSE - BAND 2 - AGENCY,Agnes Unit,HCL NURSING,HNSI0001289,22971.75
Department of Health,Leicestershire Partnership NHS Trust,23/03/23,NURSE - BAND 5 - AGENCY,Agnes Unit,HCL NURSING,HNSI0001289,30827.57
Department of Health,Leicestershire Partnership NHS Trust,23/03/23,Nurse - Band 7 - Agency,Agnes Unit,HCL NURSING,HNSI0001289,3411.77
Department of Health,Leicestershire Partnership NHS Trust,23/03/23,NURSE - BAND 2 - AGENCY,Ashby Ward (Bradgate Unit),HCL NURSING,HNSI0001289,5939.94
Department of Health,Leicestershire Partnership NHS Trust,23/03/23,NURSE - BAND 5 - AGENCY,Ashby Ward (Bradgate Unit),HCL NURSING,HNSI0001289,8384.68
Department of Health,Leicestershire Partnership NHS Trust,23/03/23,NURSE - BAND 2 - AGENCY,Aston Ward Bradgate Unit (Prev Welford),HCL NURSING,HNSI0001289,3203.37
Department of Health,Leicestershire Partnership NHS Trust,23/03/23,NURSE - BAND 5 - AGENCY,Aston Ward Bradgate Unit (Prev Welford),HCL NURSING,HNSI0001289,850.31
Department of Health,Leicestershire Partnership NHS Trust,23/03/23,NURSE - BAND 2 - AGENCY,Beaumont Ward - Bradgate Unit,HCL NURSING,HNSI0001289,1216.82
Department of Health,Leicestershire Partnership NHS Trust,23/03/23,NURSE - BAND 5 - AGENCY,Beaumont Ward - Bradgate Unit,HCL NURSING,HNSI0001289,10087.94
Department of Health,Leicestershire Partnership NHS Trust,23/03/23,NURSE - BAND 2 - AGENCY,Belvoir Psychiatric Intensive Care Unit,HCL NURSING,HNSI0001289,3294.09
Department of Health,Leicestershire Partnership NHS Trust,23/03/23,NURSE - BAND 5 - AGENCY,Belvoir Psychiatric Intensive Care Unit,HCL NURSING,HNSI0001289,6934.34
Department of Health,Leicestershire Partnership NHS Trust,23/03/23,NURSE - BAND 5 - AGENCY,Bosworth Ward - Bradgate Unit,HCL NURSING,HNSI0001289,8469.03
Department of Health,Leicestershire Partnership NHS Trust,23/03/23,NURSE - BAND 2 - AGENCY,Cedar (Willows),HCL NURSING,HNSI0001289,597.34
Department of Health,Leicestershire Partnership NHS Trust,23/03/23,NURSE - BAND 5 - AGENCY,Cedar (Willows),HCL NURSING,HNSI0001289,899.08
Department of Health,Leicestershire Partnership NHS Trust,23/03/23,Nurse - Band 6 -Agency,City West CMHT MHSOP,HCL NURSING,HNSI0001289,1255.50
Department of Health,Leicestershire Partnership NHS Trust,23/03/23,NURSE - BAND 2 - AGENCY,Coleman Ward,HCL NURSING,HNSI0001289,2406.51
Department of Health,Leicestershire Partnership NHS Trust,23/03/23,NURSE - BAND 5 - AGENCY,Coleman Ward,HCL NURSING,HNSI0001289,3383.73
Department of Health,Leicestershire Partnership NHS Trust,23/03/23,NURSE - BAND 5 - AGENCY,Crisis Resolution,HCL NURSING,HNSI0001289,1438.43
Department of Health,Leicestershire Partnership NHS Trust,23/03/23,Nurse - Band 6 -Agency,Crisis Resolution,HCL NURSING,HNSI0001289,603.77
Department of Health,Leicestershire Partnership NHS Trust,23/03/23,NURSE - BAND 2 - AGENCY,Griffin Ward (HPC),HCL NURSING,HNSI0001289,3924.97
Department of Health,Leicestershire Partnership NHS Trust,23/03/23,NURSE - BAND 5 - AGENCY,Griffin Ward (HPC),HCL NURSING,HNSI0001289,4741.84
Department of Health,Leicestershire Partnership NHS Trust,23/03/23,NURSE - BAND 2 - AGENCY,Gwendolen Ward,HCL NURSING,HNSI0001289,2498.31
Department of Health,Leicestershire Partnership NHS Trust,23/03/23,NURSE - BAND 5 - AGENCY,Gwendolen Ward,HCL NURSING,HNSI0001289,669.81
Department of Health,Leicestershire Partnership NHS Trust,23/03/23,NURSE - BAND 2 - AGENCY,Heather Ward,HCL NURSING,HNSI0001289,617.53
Department of Health,Leicestershire Partnership NHS Trust,23/03/23,NURSE - BAND 5 - AGENCY,Heather Ward,HCL NURSING,HNSI0001289,2712.32
Department of Health,Leicestershire Partnership NHS Trust,23/03/23,NURSE - BAND 2 - AGENCY,Kirby Ward,HCL NURSING,HNSI0001289,2327.43
Department of Health,Leicestershire Partnership NHS Trust,23/03/23,NURSE - BAND 5 - AGENCY,Kirby Ward,HCL NURSING,HNSI0001289,4476.17
Department of Health,Leicestershire Partnership NHS Trust,23/03/23,NURSE - BAND 2 - AGENCY,Maple Ward,HCL NURSING,HNSI0001289,781.17
Department of Health,Leicestershire Partnership NHS Trust,23/03/23,NURSE - BAND 5 - AGENCY,Maple Ward,HCL NURSING,HNSI0001289,4751.66
Department of Health,Leicestershire Partnership NHS Trust,23/03/23,Nurse - Band 6 -Agency,Mental Health Liaison Team,HCL NURSING,HNSI0001289,1365.31
Department of Health,Leicestershire Partnership NHS Trust,23/03/23,NURSE - BAND 2 - AGENCY,Mill Lodge,HCL NURSING,HNSI0001289,1310.48
Department of Health,Leicestershire Partnership NHS Trust,23/03/23,NURSE - BAND 5 - AGENCY,Mill Lodge,HCL NURSING,HNSI0001289,449.54
Department of Health,Leicestershire Partnership NHS Trust,23/03/23,NURSE - BAND 2 - AGENCY,Phoenix Ward (HPC),HCL NURSING,HNSI0001289,786.99
Department of Health,Leicestershire Partnership NHS Trust,23/03/23,NURSE - BAND 5 - AGENCY,Phoenix Ward (HPC),HCL NURSING,HNSI0001289,1517.24
Department of Health,Leicestershire Partnership NHS Trust,23/03/23,NURSE - BAND 2 - AGENCY,Place Of Safety Assessment Unit,HCL NURSING,HNSI0001289,1259.49
Department of Health,Leicestershire Partnership NHS Trust,23/03/23,NURSE - BAND 5 - AGENCY,Place Of Safety Assessment Unit,HCL NURSING,HNSI0001289,1578.54
Department of Health,Leicestershire Partnership NHS Trust,23/03/23,Nurse - Band 6 -Agency,Place Of Safety Assessment Unit,HCL NURSING,HNSI0001289,1020.53
Department of Health,Leicestershire Partnership NHS Trust,23/03/23,NURSE - BAND 2 - AGENCY,Stewart House,HCL NURSING,HNSI0001289,555.05
Department of Health,Leicestershire Partnership NHS Trust,23/03/23,NURSE - BAND 5 - AGENCY,Stewart House,HCL NURSING,HNSI0001289,899.08
Department of Health,Leicestershire Partnership NHS Trust,23/03/23,NURSE - BAND 2 - AGENCY,Sycamore (Willows),HCL NURSING,HNSI0001289,339.30
Department of Health,Leicestershire Partnership NHS Trust,23/03/23,NURSE - BAND 5 - AGENCY,Sycamore (Willows),HCL NURSING,HNSI0001289,514.85
Department of Health,Leicestershire Partnership NHS Trust,23/03/23,NURSE - BAND 2 - AGENCY,Thornton Ward - Bradgate Unit,HCL NURSING,HNSI0001289,1029.21
Department of Health,Leicestershire Partnership NHS Trust,23/03/23,NURSE - BAND 5 - AGENCY,Thornton Ward - Bradgate Unit,HCL NURSING,HNSI0001289,514.85
Department of Health,Leicestershire Partnership NHS Trust,24/03/23,NURSE - BAND 2 - AGENCY,Beechwood Ward,HCL NURSING,HNSI0001290,9490.58
Department of Health,Leicestershire Partnership NHS Trust,24/03/23,NURSE - BAND 5 - AGENCY,Beechwood Ward,HCL NURSING,HNSI0001290,3085.45
Department of Health,Leicestershire Partnership NHS Trust,24/03/23,NURSE - BAND 2 - AGENCY,CHS Surge Ward,HCL NURSING,HNSI0001290,8950.11
Department of Health,Leicestershire Partnership NHS Trust,24/03/23,NURSE - BAND 5 - AGENCY,CHS Surge Ward,HCL NURSING,HNSI0001290,11009.50
Department of Health,Leicestershire Partnership NHS Trust,24/03/23,NURSE - BAND 5 - AGENCY,City Planned Care - East,HCL NURSING,HNSI0001290,9940.47
Department of Health,Leicestershire Partnership NHS Trust,24/03/23,NURSE - BAND 5 - AGENCY,City Planned Care - West,HCL NURSING,HNSI0001290,5350.11
Department of Health,Leicestershire Partnership NHS Trust,24/03/23,NURSE - BAND 2 - AGENCY,Clarendon Ward,HCL NURSING,HNSI0001290,19191.56
Department of Health,Leicestershire Partnership NHS Trust,24/03/23,NURSE - BAND 5 - AGENCY,Clarendon Ward,HCL NURSING,HNSI0001290,851.76
Department of Health,Leicestershire Partnership NHS Trust,24/03/23,NURSE - BAND 2 - AGENCY,Coalville Snibston Ward,HCL NURSING,HNSI0001290,6476.05
Department of Health,Leicestershire Partnership NHS Trust,24/03/23,NURSE - BAND 5 - AGENCY,Coalville Snibston Ward,HCL NURSING,HNSI0001290,4323.68
Department of Health,Leicestershire Partnership NHS Trust,24/03/23,NURSE - BAND 2 - AGENCY,Coalville Ward 2,HCL NURSING,HNSI0001290,4319.23
Department of Health,Leicestershire Partnership NHS Trust,24/03/23,NURSE - BAND 5 - AGENCY,Coalville Ward 2,HCL NURSING,HNSI0001290,2589.93
Department of Health,Leicestershire Partnership NHS Trust,24/03/23,NURSE - BAND 2 - AGENCY,Dalgliesh Ward,HCL NURSING,HNSI0001290,3709.99
Department of Health,Leicestershire Partnership NHS Trust,24/03/23,NURSE - BAND 5 - AGENCY,Dalgliesh Ward,HCL NURSING,HNSI0001290,1536.24
Department of Health,Leicestershire Partnership NHS Trust,24/03/23,NURSE - BAND 5 - AGENCY,"East Planned Care - Oadby,Wigston & Harborough",HCL NURSING,HNSI0001290,1292.16
Department of Health,Leicestershire Partnership NHS Trust,24/03/23,NURSE - BAND 2 - AGENCY,H&B Comm Hosp East Ward,HCL NURSING,HNSI0001290,5358.86
Department of Health,Leicestershire Partnership NHS Trust,24/03/23,NURSE - BAND 5 - AGENCY,H&B Comm Hosp East Ward,HCL NURSING,HNSI0001290,12466.17
Department of Health,Leicestershire Partnership NHS Trust,24/03/23,NURSE - BAND 2 - AGENCY,H&B Comm Hosp North Ward,HCL NURSING,HNSI0001290,4610.81
Department of Health,Leicestershire Partnership NHS Trust,24/03/23,NURSE - BAND 5 - AGENCY,H&B Comm Hosp North Ward,HCL NURSING,HNSI0001290,2770.61
Department of Health,Leicestershire Partnership NHS Trust,24/03/23,NURSE - BAND 2 - AGENCY,Lough Swithland Ward,HCL NURSING,HNSI0001290,3572.42
Department of Health,Leicestershire Partnership NHS Trust,24/03/23,NURSE - BAND 5 - AGENCY,Lough Swithland Ward,HCL NURSING,HNSI0001290,3172.67
Department of Health,Leicestershire Partnership NHS Trust,24/03/23,NURSE - BAND 2 - AGENCY,Rutland Ward Nursing,HCL NURSING,HNSI0001290,1366.23
Department of Health,Leicestershire Partnership NHS Trust,24/03/23,NURSE - BAND 5 - AGENCY,Rutland Ward Nursing,HCL NURSING,HNSI0001290,1722.51
Department of Health,Leicestershire Partnership NHS Trust,24/03/23,NURSE - BAND 2 - AGENCY,St Lukes Stroke Ward,HCL NURSING,HNSI0001290,5983.38
Department of Health,Leicestershire Partnership NHS Trust,24/03/23,NURSE - BAND 5 - AGENCY,St Lukes Stroke Ward,HCL NURSING,HNSI0001290,2120.72
Department of Health,Leicestershire Partnership NHS Trust,24/03/23,NURSE - BAND 2 - AGENCY,St Lukes Ward 3,HCL NURSING,HNSI0001290,3432.02
Department of Health,Leicestershire Partnership NHS Trust,24/03/23,NURSE - BAND 5 - AGENCY,St Lukes Ward 3,HCL NURSING,HNSI0001290,779.38
Department of Health,Leicestershire Partnership NHS Trust,24/03/23,Landline Telephone Rental / Calls,"Beaumont Leys Health Centre (P94, LPT)",VIRGIN MEDIA BUSINESS,853083001/004/0323,331.31
Department of Health,Leicestershire Partnership NHS Trust,24/03/23,Landline Telephone Rental / Calls,"Bennion Centre (including Forest Grange Day Unit) (P8, LPT)",VIRGIN MEDIA BUSINESS,853083001/004/0323,7.74
Department of Health,Leicestershire Partnership NHS Trust,24/03/23,Landline Telephone Rental / Calls,"Bradgate Unit (including Glenvale day Unit) (P7, LPT)",VIRGIN MEDIA BUSINESS,853083001/004/0323,7612.06
Department of Health,Leicestershire Partnership NHS Trust,24/03/23,Landline Telephone Rental / Calls,Braunstone Health and Social Care Centre (Part) (PROPCO),VIRGIN MEDIA BUSINESS,853083001/004/0323,1136.64
Department of Health,Leicestershire Partnership NHS Trust,24/03/23,Landline Telephone Rental / Calls,Bridge Park Plaza - First Floor (LPT),VIRGIN MEDIA BUSINESS,853083001/004/0323,2846.54
Department of Health,Leicestershire Partnership NHS Trust,24/03/23,Landline Telephone Rental / Calls,"Coalville Community Hospital (P138, LPT)",VIRGIN MEDIA BUSINESS,853083001/004/0323,1443.50
Department of Health,Leicestershire Partnership NHS Trust,24/03/23,Landline Telephone Rental / Calls,"Coalville Health Centre (P121, LPT)",VIRGIN MEDIA BUSINESS,853083001/004/0323,106.54
Department of Health,Leicestershire Partnership NHS Trust,24/03/23,Landline Telephone Rental / Calls,County Hall,VIRGIN MEDIA BUSINESS,853083001/004/0323,1509.00
Department of Health,Leicestershire Partnership NHS Trust,24/03/23,Landline Telephone Rental / Calls,Estates & Facilities Central,VIRGIN MEDIA BUSINESS,853083001/004/0323,5.75
Department of Health,Leicestershire Partnership NHS Trust,24/03/23,Landline Telephone Rental / Calls,"Evington Centre (P6, LPT)",VIRGIN MEDIA BUSINESS,853083001/004/0323,204.06
Department of Health,Leicestershire Partnership NHS Trust,24/03/23,Landline Telephone Rental / Calls,HIS,VIRGIN MEDIA BUSINESS,853083001/004/0323,2743.78
Department of Health,Leicestershire Partnership NHS Trust,24/03/23,Landline Telephone Rental / Calls,"Hawthorne Centre - Coalville (P14, LPT)",VIRGIN MEDIA BUSINESS,853083001/004/0323,449.10
Department of Health,Leicestershire Partnership NHS Trust,24/03/23,Landline Telephone Rental / Calls,"Hinckley and Bosworth Community Hospital (Sunnyside) (P133, LPT)",VIRGIN MEDIA BUSINESS,853083001/004/0323,965.60
Department of Health,Leicestershire Partnership NHS Trust,24/03/23,Landline Telephone Rental / Calls,Hood Park Leisure Centre Clinic,VIRGIN MEDIA BUSINESS,853083001/004/0323,-13.93
Department of Health,Leicestershire Partnership NHS Trust,24/03/23,Landline Telephone Rental / Calls,"Hynca Lodge (P33, LPT)",VIRGIN MEDIA BUSINESS,853083001/004/0323,385.32
Department of Health,Leicestershire Partnership NHS Trust,24/03/23,Landline Telephone Rental / Calls,"Legion House, Ashby",VIRGIN MEDIA BUSINESS,853083001/004/0323,11.81
Department of Health,Leicestershire Partnership NHS Trust,24/03/23,Landline Telephone Rental / Calls,"Loughborough Hospital (P136, LPT)",VIRGIN MEDIA BUSINESS,853083001/004/0323,4186.96
Department of Health,Leicestershire Partnership NHS Trust,24/03/23,Landline Telephone Rental / Calls,Mawson House (LPT),VIRGIN MEDIA BUSINESS,853083001/004/0323,439.49
Department of Health,Leicestershire Partnership NHS Trust,24/03/23,Landline Telephone Rental / Calls,Merlyn Vaz Centre (CHP),VIRGIN MEDIA BUSINESS,853083001/004/0323,1328.17
Department of Health,Leicestershire Partnership NHS Trust,24/03/23,Landline Telephone Rental / Calls,NSPCC Training Cente,VIRGIN MEDIA BUSINESS,853083001/004/0323,159.94
Department of Health,Leicestershire Partnership NHS Trust,24/03/23,Landline Telephone Rental / Calls,New Parks Health Centre (PROPCO),VIRGIN MEDIA BUSINESS,853083001/004/0323,1671.82
Department of Health,Leicestershire Partnership NHS Trust,24/03/23,Landline Telephone Rental / Calls,"OSL House (P54, LPT)",VIRGIN MEDIA BUSINESS,853083001/004/0323,916.12
Department of Health,Leicestershire Partnership NHS Trust,24/03/23,Landline Telephone Rental / Calls,"Orchard Resource Centre (P15, LPT)",VIRGIN MEDIA BUSINESS,853083001/004/0323,540.65
Department of Health,Leicestershire Partnership NHS Trust,24/03/23,Landline Telephone Rental / Calls,Pasley Road Health Centre (PROPCO),VIRGIN MEDIA BUSINESS,853083001/004/0323,143.83
Department of Health,Leicestershire Partnership NHS Trust,24/03/23,Landline Telephone Rental / Calls,"Prince Philip House (P96, LPT)",VIRGIN MEDIA BUSINESS,853083001/004/0323,1498.73
Department of Health,Leicestershire Partnership NHS Trust,24/03/23,Landline Telephone Rental / Calls,Rushey Mead Health Centre (PROPCO),VIRGIN MEDIA BUSINESS,853083001/004/0323,74.56
Department of Health,Leicestershire Partnership NHS Trust,24/03/23,Landline Telephone Rental / Calls,"Springfield Road Health Centre (P92, LPT)",VIRGIN MEDIA BUSINESS,853083001/004/0323,339.16
Department of Health,Leicestershire Partnership NHS Trust,24/03/23,Landline Telephone Rental / Calls,"St Peters Health Center (Part 1st and 2nd floors) (P66, LPT)",VIRGIN MEDIA BUSINESS,853083001/004/0323,1550.83
Department of Health,Leicestershire Partnership NHS Trust,24/03/23,Landline Telephone Rental / Calls,"Swithland House - London Road 352 (P44, LPT)",VIRGIN MEDIA BUSINESS,853083001/004/0323,218.80
Department of Health,Leicestershire Partnership NHS Trust,24/03/23,Landline Telephone Rental / Calls,"The Cedars (P19, LPT)",VIRGIN MEDIA BUSINESS,853083001/004/0323,685.73
Department of Health,Leicestershire Partnership NHS Trust,24/03/23,Landline Telephone Rental / Calls,"The Willows - Cordelia Close (P22, LPT)",VIRGIN MEDIA BUSINESS,853083001/004/0323,532.62
Department of Health,Leicestershire Partnership NHS Trust,24/03/23,Landline Telephone Rental / Calls,"Valentine Centre (P3, LPT)",VIRGIN MEDIA BUSINESS,853083001/004/0323,1733.15
Department of Health,Leicestershire Partnership NHS Trust,24/03/23,Landline Telephone Rental / Calls,Warren Park Way 25 (PROPCO),VIRGIN MEDIA BUSINESS,853083001/004/0323,740.62
Department of Health,Leicestershire Partnership NHS Trust,24/03/23,Landline Telephone Rental / Calls,"Westcotes Group -Westcotes House (P78, LPT)",VIRGIN MEDIA BUSINESS,853083001/004/0323,951.54
Department of Health,Leicestershire Partnership NHS Trust,24/03/23,Landline Telephone Rental / Calls,"Winstanley Drive Health Centre (P8, LPT)",VIRGIN MEDIA BUSINESS,853083001/004/0323,46.44
Department of Health,Leicestershire Partnership NHS Trust,27/03/23,FP10'S,Adult City Drugs,NHS BUS SERVICES AUTHORITY,1000076749,34760.89
Department of Health,Leicestershire Partnership NHS Trust,27/03/23,FP10'S,Adult County Drugs,NHS BUS SERVICES AUTHORITY,1000076749,26875.85
Department of Health,Leicestershire Partnership NHS Trust,27/03/23,FP10'S,CAMHS Outpatients,NHS BUS SERVICES AUTHORITY,1000076749,11689.17
Department of Health,Leicestershire Partnership NHS Trust,27/03/23,FP10'S,Community Paediatrics,NHS BUS SERVICES AUTHORITY,1000076749,1656.37
Department of Health,Leicestershire Partnership NHS Trust,27/03/23,FP10'S,Dementia Related Drugs and Investigations,NHS BUS SERVICES AUTHORITY,1000076749,7508.96
Department of Health,Leicestershire Partnership NHS Trust,27/03/23,FP10'S,Eating Disorders Outpatient Service,NHS BUS SERVICES AUTHORITY,1000076749,1958.31
Department of Health,Leicestershire Partnership NHS Trust,27/03/23,FP10'S,Forensic Services - Community,NHS BUS SERVICES AUTHORITY,1000076749,41.76
Department of Health,Leicestershire Partnership NHS Trust,27/03/23,FP10'S,LOROS Pharmacy,NHS BUS SERVICES AUTHORITY,1000076749,1725.01
Department of Health,Leicestershire Partnership NHS Trust,27/03/23,FP10'S,Mental Health Liaison Team,NHS BUS SERVICES AUTHORITY,1000076749,15.84
Department of Health,Leicestershire Partnership NHS Trust,27/03/23,FP10'S,PIER Team - Early Intervention Services,NHS BUS SERVICES AUTHORITY,1000076749,28067.66
Department of Health,Leicestershire Partnership NHS Trust,27/03/23,FP10'S,Snr Med Staff (Inc Med Reps),NHS BUS SERVICES AUTHORITY,1000076749,8766.27
Department of Health,Leicestershire Partnership NHS Trust,27/03/23,HIS LPT Costs,HIS,CAREFLOW MEDS MAN LTD,033662,148976.10
Department of Health,Leicestershire Partnership NHS Trust,27/03/23,WIP Project Not in BS - Buildings excl Dwellings,Work in Progress,TILBURY DOUGLAS CONSTRUCTION LTD,23030335,344974.84
Department of Health,Leicestershire Partnership NHS Trust,27/03/23,Catering - Patient - Food,Facilities Team,BIDFOOD,202211,147226.32
Department of Health,Leicestershire Partnership NHS Trust,27/03/23,Crs_NHS_LT1y -Resus Inventory Supplied.,Balance Sheet Collection,SUPPLY CHAIN CO LTD,1123297956,29717.10
Department of Health,Leicestershire Partnership NHS Trust,27/03/23,WIP Project Not in BS - Buildings excl Dwellings,Work in Progress,TILBURY DOUGLAS CONSTRUCTION LTD,23030356,28037.35
Department of Health,Leicestershire Partnership NHS Trust,27/03/23,WIP Project Not in BS - Buildings excl Dwellings,Work in Progress,TILBURY DOUGLAS CONSTRUCTION LTD,23030376,75229.03
Department of Health,Leicestershire Partnership NHS Trust,27/03/23,WIP Project Not in BS - Buildings excl Dwellings,Work in Progress,TILBURY DOUGLAS CONSTRUCTION LTD,23030380,41648.08
Department of Health,Leicestershire Partnership NHS Trust,27/03/23,WIP Project Not in BS - Buildings excl Dwellings,Work in Progress,TILBURY DOUGLAS CONSTRUCTION LTD,23030383,102857.60
Department of Health,Leicestershire Partnership NHS Trust,27/03/23,WIP Project Not in BS - Buildings excl Dwellings,Work in Progress,TILBURY DOUGLAS CONSTRUCTION LTD,23030351,182589.20
Department of Health,Leicestershire Partnership NHS Trust,27/03/23,WIP Project Not in BS - Buildings excl Dwellings,Work in Progress,TILBURY DOUGLAS CONSTRUCTION LTD,23030352,89476.78
Department of Health,Leicestershire Partnership NHS Trust,27/03/23,WIP Project Not in BS - Buildings excl Dwellings,Work in Progress,TILBURY DOUGLAS CONSTRUCTION LTD,23030355,43626.07
Department of Health,Leicestershire Partnership NHS Trust,27/03/23,Removal Expenses,"DeMontfort House (P59, LPT)",TILBURY DOUGLAS CONSTRUCTION LTD,23030359,33522.07
Department of Health,Leicestershire Partnership NHS Trust,27/03/23,WIP Project Not in BS - Buildings excl Dwellings,Work in Progress,TILBURY DOUGLAS CONSTRUCTION LTD,23030360,86855.71
Department of Health,Leicestershire Partnership NHS Trust,27/03/23,WIP Project Not in BS - Buildings excl Dwellings,Work in Progress,TILBURY DOUGLAS CONSTRUCTION LTD,23030363,54789.24
Department of Health,Leicestershire Partnership NHS Trust,27/03/23,WIP Project Not in BS - Buildings excl Dwellings,Work in Progress,TILBURY DOUGLAS CONSTRUCTION LTD,23030366,60014.66
Department of Health,Leicestershire Partnership NHS Trust,27/03/23,WIP Project Not in BS - Buildings excl Dwellings,Work in Progress,TILBURY DOUGLAS CONSTRUCTION LTD,23030367,58926.06
Department of Health,Leicestershire Partnership NHS Trust,27/03/23,WIP Project Not in BS - Buildings excl Dwellings,Work in Progress,TILBURY DOUGLAS CONSTRUCTION LTD,23030377,36928.76
Department of Health,Leicestershire Partnership NHS Trust,27/03/23,WIP Project Not in BS - Buildings excl Dwellings,Work in Progress,TILBURY DOUGLAS CONSTRUCTION LTD,23030370,101520.11
Department of Health,Leicestershire Partnership NHS Trust,27/03/23,WIP Project Not in BS - Buildings excl Dwellings,Work in Progress,TILBURY DOUGLAS CONSTRUCTION LTD,23030372,125032.03
Department of Health,Leicestershire Partnership NHS Trust,27/03/23,WIP Project Not in BS - Buildings excl Dwellings,Work in Progress,TILBURY DOUGLAS CONSTRUCTION LTD,23030381,110868.66
Department of Health,Leicestershire Partnership NHS Trust,27/03/23,WIP Project Not in BS - Buildings excl Dwellings,Work in Progress,TILBURY DOUGLAS CONSTRUCTION LTD,23030373,50748.17
Department of Health,Leicestershire Partnership NHS Trust,28/03/23,WIP Project Not in BS - Buildings excl Dwellings,Work in Progress,C HENRY & SONS,13613,29818.80
Department of Health,Leicestershire Partnership NHS Trust,28/03/23,Medical Equipment Repairs / Maintenance,Medical Devices Maintenance (LPT),SUPPLY CHAIN CO LTD,2123009689,46312.37
Department of Health,Leicestershire Partnership NHS Trust,28/03/23,Medical Equipment Repairs / Maintenance,Medical Devices Maintenance (LPT),SUPPLY CHAIN CO LTD,2123009690,308549.44
Department of Health,Leicestershire Partnership NHS Trust,28/03/23,WIP Project Not in BS - Information Technology,Work in Progress,DELL COMPUTERS,7402895908,53580.00
Department of Health,Leicestershire Partnership NHS Trust,28/03/23,WIP Project Not in BS - Information Technology,Work in Progress,DELL COMPUTERS,7402895909,39649.20
Department of Health,Leicestershire Partnership NHS Trust,29/03/23,Admin & Clerical - Band 5,Chief Executives Office,NORTHAMPTONSHIRE HC NHS FT (RP1),5153735,1230.56
Department of Health,Leicestershire Partnership NHS Trust,29/03/23,Admin & Clerical - Band 6,Chief Executives Office,NORTHAMPTONSHIRE HC NHS FT (RP1),5153735,1509.26
Department of Health,Leicestershire Partnership NHS Trust,29/03/23,CHIEF EXECUTIVE'S REMUNERATION,Chief Executives Office,NORTHAMPTONSHIRE HC NHS FT (RP1),5153735,10848.38
Department of Health,Leicestershire Partnership NHS Trust,29/03/23,DIRECTOR,Chief Executives Office,NORTHAMPTONSHIRE HC NHS FT (RP1),5153735,21077.68
Department of Health,Leicestershire Partnership NHS Trust,29/03/23,Senior Manager - Band 8A,Chief Nurse,NORTHAMPTONSHIRE HC NHS FT (RP1),5153735,4938.40
Department of Health,Leicestershire Partnership NHS Trust,29/03/23,Senior Manager - Band 8C,Director of Finance,NORTHAMPTONSHIRE HC NHS FT (RP1),5153735,3694.52
Department of Health,Leicestershire Partnership NHS Trust,29/03/23,Senior Manager - Band 8D,HIS Management Team,NORTHAMPTONSHIRE HC NHS FT (RP1),5153735,6047.33
Department of Health,Leicestershire Partnership NHS Trust,29/03/23,Telephone equipment,New Parks Health Centre (PROPCO),VIRGIN MEDIA BUSINESS,60050599,30396.49
Department of Health,Leicestershire Partnership NHS Trust,29/03/23,Telephone equipment,SPA,VIRGIN MEDIA BUSINESS,60050599,11820.00
Department of Health,Leicestershire Partnership NHS Trust,30/03/23,External Consultancy Fees,Facilities Team,BLOOM PROC SERV LTD,SIN041745,49625.26
Department of Health,Leicestershire Partnership NHS Trust,30/03/23,External Consultancy Fees,FM Transformation,TURNER & TOWNSEND COST MAN,PRIV00003553,37086.72
Department of Health,Leicestershire Partnership NHS Trust,30/03/23,WIP Project Not in BS - Information Technology,Work in Progress,DELL COMPUTERS,7402901161,35400.00
Department of Health,Leicestershire Partnership NHS Trust,30/03/23,WIP Project Not in BS - Information Technology,Work in Progress,DELL COMPUTERS,7402901331,38424.00
Department of Health,Leicestershire Partnership NHS Trust,30/03/23,NURSE - BAND 2 - AGENCY,Beechwood Ward,HCL NURSING,HNSI0001298,6874.16
Department of Health,Leicestershire Partnership NHS Trust,30/03/23,NURSE - BAND 5 - AGENCY,Beechwood Ward,HCL NURSING,HNSI0001298,3734.48
Department of Health,Leicestershire Partnership NHS Trust,30/03/23,NURSE - BAND 2 - AGENCY,CHS Surge Ward,HCL NURSING,HNSI0001298,7309.52
Department of Health,Leicestershire Partnership NHS Trust,30/03/23,NURSE - BAND 5 - AGENCY,CHS Surge Ward,HCL NURSING,HNSI0001298,7280.25
Department of Health,Leicestershire Partnership NHS Trust,30/03/23,NURSE - BAND 5 - AGENCY,City Planned Care - East,HCL NURSING,HNSI0001298,9026.05
Department of Health,Leicestershire Partnership NHS Trust,30/03/23,NURSE - BAND 5 - AGENCY,City Planned Care - West,HCL NURSING,HNSI0001298,8141.51
Department of Health,Leicestershire Partnership NHS Trust,30/03/23,NURSE - BAND 2 - AGENCY,Clarendon Ward,HCL NURSING,HNSI0001298,20019.23
Department of Health,Leicestershire Partnership NHS Trust,30/03/23,NURSE - BAND 5 - AGENCY,Clarendon Ward,HCL NURSING,HNSI0001298,3768.64
Department of Health,Leicestershire Partnership NHS Trust,30/03/23,NURSE - BAND 2 - AGENCY,Coalville Snibston Ward,HCL NURSING,HNSI0001298,11566.94
Department of Health,Leicestershire Partnership NHS Trust,30/03/23,NURSE - BAND 5 - AGENCY,Coalville Snibston Ward,HCL NURSING,HNSI0001298,1991.90
Department of Health,Leicestershire Partnership NHS Trust,30/03/23,NURSE - BAND 2 - AGENCY,Coalville Ward 2,HCL NURSING,HNSI0001298,3773.42
Department of Health,Leicestershire Partnership NHS Trust,30/03/23,NURSE - BAND 5 - AGENCY,Coalville Ward 2,HCL NURSING,HNSI0001298,2142.69
Department of Health,Leicestershire Partnership NHS Trust,30/03/23,NURSE - BAND 2 - AGENCY,Dalgliesh Ward,HCL NURSING,HNSI0001298,1464.74
Department of Health,Leicestershire Partnership NHS Trust,30/03/23,NURSE - BAND 5 - AGENCY,Dalgliesh Ward,HCL NURSING,HNSI0001298,1791.85
Department of Health,Leicestershire Partnership NHS Trust,30/03/23,NURSE - BAND 5 - AGENCY,"East Planned Care - Oadby,Wigston & Harborough",HCL NURSING,HNSI0001298,1539.83
Department of Health,Leicestershire Partnership NHS Trust,30/03/23,NURSE - BAND 2 - AGENCY,H&B Comm Hosp East Ward,HCL NURSING,HNSI0001298,5464.39
Department of Health,Leicestershire Partnership NHS Trust,30/03/23,NURSE - BAND 5 - AGENCY,H&B Comm Hosp East Ward,HCL NURSING,HNSI0001298,13484.18
Department of Health,Leicestershire Partnership NHS Trust,30/03/23,NURSE - BAND 2 - AGENCY,H&B Comm Hosp North Ward,HCL NURSING,HNSI0001298,4732.80
Department of Health,Leicestershire Partnership NHS Trust,30/03/23,NURSE - BAND 5 - AGENCY,H&B Comm Hosp North Ward,HCL NURSING,HNSI0001298,6093.55
Department of Health,Leicestershire Partnership NHS Trust,30/03/23,NURSE - BAND 2 - AGENCY,Lough Swithland Ward,HCL NURSING,HNSI0001298,5104.43
Department of Health,Leicestershire Partnership NHS Trust,30/03/23,NURSE - BAND 5 - AGENCY,Lough Swithland Ward,HCL NURSING,HNSI0001298,2512.95
Department of Health,Leicestershire Partnership NHS Trust,30/03/23,NURSE - BAND 2 - AGENCY,Rutland Ward Nursing,HCL NURSING,HNSI0001298,4077.83
Department of Health,Leicestershire Partnership NHS Trust,30/03/23,NURSE - BAND 5 - AGENCY,Rutland Ward Nursing,HCL NURSING,HNSI0001298,861.81
Department of Health,Leicestershire Partnership NHS Trust,30/03/23,NURSE - BAND 2 - AGENCY,St Lukes Stroke Ward,HCL NURSING,HNSI0001298,7233.43
Department of Health,Leicestershire Partnership NHS Trust,30/03/23,NURSE - BAND 5 - AGENCY,St Lukes Stroke Ward,HCL NURSING,HNSI0001298,1799.98
Department of Health,Leicestershire Partnership NHS Trust,30/03/23,NURSE - BAND 2 - AGENCY,St Lukes Ward 3,HCL NURSING,HNSI0001298,3031.95
Department of Health,Leicestershire Partnership NHS Trust,30/03/23,NURSE - BAND 5 - AGENCY,St Lukes Ward 3,HCL NURSING,HNSI0001298,421.85
Department of Health,Leicestershire Partnership NHS Trust,30/03/23,NURSE - BAND 5 - AGENCY,AMH - Central Access Point,HCL NURSING,HNSI0001297,830.00
Department of Health,Leicestershire Partnership NHS Trust,30/03/23,Nurse - Band 6 -Agency,AMH - Central Access Point,HCL NURSING,HNSI0001297,2752.18
Department of Health,Leicestershire Partnership NHS Trust,30/03/23,Nurse - Band 7 - Agency,Adult County South Leicestershire CMHT,HCL NURSING,HNSI0001297,1365.26
Department of Health,Leicestershire Partnership NHS Trust,30/03/23,NURSE - BAND 2 - AGENCY,Agnes Unit,HCL NURSING,HNSI0001297,32382.23
Department of Health,Leicestershire Partnership NHS Trust,30/03/23,NURSE - BAND 5 - AGENCY,Agnes Unit,HCL NURSING,HNSI0001297,28651.05
Department of Health,Leicestershire Partnership NHS Trust,30/03/23,Nurse - Band 7 - Agency,Agnes Unit,HCL NURSING,HNSI0001297,1693.87
Department of Health,Leicestershire Partnership NHS Trust,30/03/23,NURSE - BAND 2 - AGENCY,Ashby Ward (Bradgate Unit),HCL NURSING,HNSI0001297,6710.15
Department of Health,Leicestershire Partnership NHS Trust,30/03/23,NURSE - BAND 5 - AGENCY,Ashby Ward (Bradgate Unit),HCL NURSING,HNSI0001297,8299.89
Department of Health,Leicestershire Partnership NHS Trust,30/03/23,NURSE - BAND 2 - AGENCY,Aston Ward Bradgate Unit (Prev Welford),HCL NURSING,HNSI0001297,4589.11
Department of Health,Leicestershire Partnership NHS Trust,30/03/23,NURSE - BAND 5 - AGENCY,Aston Ward Bradgate Unit (Prev Welford),HCL NURSING,HNSI0001297,1059.57
Department of Health,Leicestershire Partnership NHS Trust,30/03/23,NURSE - BAND 2 - AGENCY,Beaumont Ward - Bradgate Unit,HCL NURSING,HNSI0001297,2574.10
Department of Health,Leicestershire Partnership NHS Trust,30/03/23,NURSE - BAND 5 - AGENCY,Beaumont Ward - Bradgate Unit,HCL NURSING,HNSI0001297,11810.13
Department of Health,Leicestershire Partnership NHS Trust,30/03/23,NURSE - BAND 2 - AGENCY,Belvoir Psychiatric Intensive Care Unit,HCL NURSING,HNSI0001297,4866.50
Department of Health,Leicestershire Partnership NHS Trust,30/03/23,NURSE - BAND 5 - AGENCY,Belvoir Psychiatric Intensive Care Unit,HCL NURSING,HNSI0001297,4646.86
Department of Health,Leicestershire Partnership NHS Trust,30/03/23,NURSE - BAND 2 - AGENCY,Bosworth Ward - Bradgate Unit,HCL NURSING,HNSI0001297,2215.72
Department of Health,Leicestershire Partnership NHS Trust,30/03/23,NURSE - BAND 5 - AGENCY,Bosworth Ward - Bradgate Unit,HCL NURSING,HNSI0001297,6978.14
Department of Health,Leicestershire Partnership NHS Trust,30/03/23,NURSE - BAND 2 - AGENCY,Cedar (Willows),HCL NURSING,HNSI0001297,718.91
Department of Health,Leicestershire Partnership NHS Trust,30/03/23,NURSE - BAND 5 - AGENCY,Cedar (Willows),HCL NURSING,HNSI0001297,1496.74
Department of Health,Leicestershire Partnership NHS Trust,30/03/23,Nurse - Band 6 -Agency,City West CMHT MHSOP,HCL NURSING,HNSI0001297,1046.25
Department of Health,Leicestershire Partnership NHS Trust,30/03/23,NURSE - BAND 2 - AGENCY,Coleman Ward,HCL NURSING,HNSI0001297,4309.91
Department of Health,Leicestershire Partnership NHS Trust,30/03/23,NURSE - BAND 5 - AGENCY,Coleman Ward,HCL NURSING,HNSI0001297,4506.48
Department of Health,Leicestershire Partnership NHS Trust,30/03/23,NURSE - BAND 5 - AGENCY,Crisis Resolution,HCL NURSING,HNSI0001297,1438.43
Department of Health,Leicestershire Partnership NHS Trust,30/03/23,NURSE - BAND 2 - AGENCY,Griffin Ward (HPC),HCL NURSING,HNSI0001297,5756.93
Department of Health,Leicestershire Partnership NHS Trust,30/03/23,NURSE - BAND 5 - AGENCY,Griffin Ward (HPC),HCL NURSING,HNSI0001297,7156.30
Department of Health,Leicestershire Partnership NHS Trust,30/03/23,NURSE - BAND 2 - AGENCY,Gwendolen Ward,HCL NURSING,HNSI0001297,2151.03
Department of Health,Leicestershire Partnership NHS Trust,30/03/23,NURSE - BAND 5 - AGENCY,Gwendolen Ward,HCL NURSING,HNSI0001297,2394.42
Department of Health,Leicestershire Partnership NHS Trust,30/03/23,NURSE - BAND 2 - AGENCY,Heather Ward,HCL NURSING,HNSI0001297,817.07
Department of Health,Leicestershire Partnership NHS Trust,30/03/23,NURSE - BAND 5 - AGENCY,Heather Ward,HCL NURSING,HNSI0001297,4362.57
Department of Health,Leicestershire Partnership NHS Trust,30/03/23,NURSE - BAND 2 - AGENCY,Kirby Ward,HCL NURSING,HNSI0001297,6465.35
Department of Health,Leicestershire Partnership NHS Trust,30/03/23,NURSE - BAND 5 - AGENCY,Kirby Ward,HCL NURSING,HNSI0001297,5014.14
Department of Health,Leicestershire Partnership NHS Trust,30/03/23,NURSE - BAND 2 - AGENCY,Maple Ward,HCL NURSING,HNSI0001297,1605.27
Department of Health,Leicestershire Partnership NHS Trust,30/03/23,NURSE - BAND 5 - AGENCY,Maple Ward,HCL NURSING,HNSI0001297,449.54
Department of Health,Leicestershire Partnership NHS Trust,30/03/23,NURSE - BAND 2 - AGENCY,Mill Lodge,HCL NURSING,HNSI0001297,3786.90
Department of Health,Leicestershire Partnership NHS Trust,30/03/23,NURSE - BAND 5 - AGENCY,Mill Lodge,HCL NURSING,HNSI0001297,1040.20
Department of Health,Leicestershire Partnership NHS Trust,30/03/23,NURSE - BAND 2 - AGENCY,Phoenix Ward (HPC),HCL NURSING,HNSI0001297,954.17
Department of Health,Leicestershire Partnership NHS Trust,30/03/23,NURSE - BAND 5 - AGENCY,Phoenix Ward (HPC),HCL NURSING,HNSI0001297,978.39
Department of Health,Leicestershire Partnership NHS Trust,30/03/23,NURSE - BAND 2 - AGENCY,Place Of Safety Assessment Unit,HCL NURSING,HNSI0001297,1103.71
Department of Health,Leicestershire Partnership NHS Trust,30/03/23,NURSE - BAND 5 - AGENCY,Place Of Safety Assessment Unit,HCL NURSING,HNSI0001297,3556.83
Department of Health,Leicestershire Partnership NHS Trust,30/03/23,NURSE - BAND 2 - AGENCY,Stewart House,HCL NURSING,HNSI0001297,530.74
Department of Health,Leicestershire Partnership NHS Trust,30/03/23,NURSE - BAND 5 - AGENCY,Stewart House,HCL NURSING,HNSI0001297,449.54
Department of Health,Leicestershire Partnership NHS Trust,30/03/23,NURSE - BAND 2 - AGENCY,Sycamore (Willows),HCL NURSING,HNSI0001297,831.12
Department of Health,Leicestershire Partnership NHS Trust,30/03/23,NURSE - BAND 5 - AGENCY,Sycamore (Willows),HCL NURSING,HNSI0001297,2419.33
Department of Health,Leicestershire Partnership NHS Trust,30/03/23,NURSE - BAND 5 - AGENCY,Thornton Ward - Bradgate Unit,HCL NURSING,HNSI0001297,964.39
Department of Health,Leicestershire Partnership NHS Trust,30/03/23,Nurse - Band 6 -Agency,CAMHS HUB / CAP,HCL WORKFORCE SOLUTIONS,HWSI0001634,10560.09
Department of Health,Leicestershire Partnership NHS Trust,30/03/23,Nurse - Band 6 -Agency,CAMHS Waiting List Monies,HCL WORKFORCE SOLUTIONS,HWSI0001634,19924.92
Department of Health,Leicestershire Partnership NHS Trust,30/03/23,Nurse - Band 6 -Agency,Crisis Response and Home Treatment,HCL WORKFORCE SOLUTIONS,HWSI0001634,1934.86
Department of Health,Leicestershire Partnership NHS Trust,30/03/23,NURSE - BAND 2 - AGENCY,CAMHS Inpatient Service,HCL NURSING,HNSI0001299,21120.04
Department of Health,Leicestershire Partnership NHS Trust,30/03/23,NURSE - BAND 5 - AGENCY,CAMHS Inpatient Service,HCL NURSING,HNSI0001299,5565.90
Department of Health,Leicestershire Partnership NHS Trust,30/03/23,NURSE - BAND 2 - AGENCY,CAMHS Learning Disabilities and Outreach Team,HCL NURSING,HNSI0001299,2385.47
Department of Health,Leicestershire Partnership NHS Trust,30/03/23,NURSE - BAND 5 - AGENCY,CAMHS Waiting List Monies,HCL NURSING,HNSI0001299,1479.29
Department of Health,Leicestershire Partnership NHS Trust,30/03/23,Nurse - Band 6 -Agency,CAMHS Waiting List Monies,HCL NURSING,HNSI0001299,5204.04
Department of Health,Leicestershire Partnership NHS Trust,30/03/23,NURSE - BAND 2 - AGENCY,Welford Ward (Prev Langley),HCL NURSING,HNSI0001299,2748.32
Department of Health,Leicestershire Partnership NHS Trust,30/03/23,NURSE - BAND 5 - AGENCY,Welford Ward (Prev Langley),HCL NURSING,HNSI0001299,4311.16
